{"text_format":"1","workbook":"xlsx","n_sheets":6,"sheets":["Step 0 - Configuration","Étape 1 - Sélection categories","Étape 2 - Sélection indicateurs","Étape 3 - Définir indicateurs","Step 4 - Set Thresholds","Output - Draft Scorecard"],"not_rendered":{"charts":0,"images":0,"macros":1,"external_links":0,"defined_names":0,"comments":0,"pivot_tables":2},"unopened":[],"bounds":{"document_bytes":16777216,"sheet_cells":100000,"rows_first":2000,"rows_last":500,"rows_between":2000,"halvings":0,"cell_chars":16384,"cell_head_chars":4096},"cells_cut":0,"cells_raw":0,"read":"whole","date_system":"1900"}

{"sheet":"Step 0 - Configuration","index":0,"n_rows":6,"n_cols":5,"rows_kept":6,"cut":false,"hidden":false,"merged":[]}
[]
[]
[null,"Nom du pays","NOM DU PAYS",null,"National / Sous-national"]
[null,null,null,null,"National"]
[null,null,null,null,"Sous-national"]
[null,"Nom de la carte de score","NOM DE LA CARTE DE SCORE"]

{"sheet":"Étape 1 - Sélection categories","index":1,"n_rows":7,"n_cols":4,"rows_kept":7,"cut":false,"hidden":false,"merged":[]}
[]
[null,{"$f":"CONCATENATE('Step 0 - Configuration'!C3,\": \",'Step 0 - Configuration'!C6)","v":"NOM DU PAYS: NOM DE LA CARTE DE SCORE"}]
[null,"Étape 1: Sélection des catégories"]
[]
[]
[null,"Nom de la catégorie",null,"Instructions"]
[null,null,null,"Entrez la liste des catégories d'indicateurs dans la liste à gauche"]

{"sheet":"Étape 2 - Sélection indicateurs","index":2,"n_rows":120,"n_cols":12,"rows_kept":120,"cut":false,"hidden":false,"merged":[]}
[]
[null,null,null,null,"Légende"]
[null,{"$f":"CONCATENATE('Step 0 - Configuration'!C3,\": \",'Step 0 - Configuration'!C6)","v":"NOM DU PAYS: NOM DE LA CARTE DE SCORE"},null,null,"Indicateur pour le vague future","garder"]
[null,"Étape 2: Sélection des indicateurs",null,null,"A vérifier","retirer de la carte de score"]
[]
[null,"Design Scorecard",{"$f":"IF('Étape 1 - Sélection categories'!$B7=\"\",\"\",'Étape 1 - Sélection categories'!$B7)","v":""},{"$f":"IF('Étape 1 - Sélection categories'!$B8=\"\",\"\",'Étape 1 - Sélection categories'!$B8)","v":""},{"$f":"IF('Étape 1 - Sélection categories'!$B9=\"\",\"\",'Étape 1 - Sélection categories'!$B9)","v":""},{"$f":"IF('Étape 1 - Sélection categories'!$B10=\"\",\"\",'Étape 1 - Sélection categories'!$B10)","v":""},{"$f":"IF('Étape 1 - Sélection categories'!$B11=\"\",\"\",'Étape 1 - Sélection categories'!$B11)","v":""},{"$f":"IF('Étape 1 - Sélection categories'!$B12=\"\",\"\",'Étape 1 - Sélection categories'!$B12)","v":""},{"$f":"IF('Étape 1 - Sélection categories'!$B13=\"\",\"\",'Étape 1 - Sélection categories'!$B13)","v":""},{"$f":"IF('Étape 1 - Sélection categories'!$B14=\"\",\"\",'Étape 1 - Sélection categories'!$B14)","v":""},{"$f":"IF('Étape 1 - Sélection categories'!$B15=\"\",\"\",'Étape 1 - Sélection categories'!$B15)","v":""},{"$f":"IF('Étape 1 - Sélection categories'!$B16=\"\",\"\",'Étape 1 - Sélection categories'!$B16)","v":""}]
[null,{"$f":"'Step 0 - Configuration'!E4","v":"National"},{"$f":"IF(C$6=\"\",\"NA\",SUMPRODUCT(($D$11:$D$60=C$6)*(($E$11:$E$60=$B7)+($E$11:$E$60='Step 0 - Configuration'!#REF!))))","v":"NA"},{"$f":"IF(D$6=\"\",\"NA\",SUMPRODUCT(($D$11:$D$60=D$6)*(($E$11:$E$60=$B7)+($E$11:$E$60='Step 0 - Configuration'!#REF!))))","v":"NA"},{"$f":"IF(E$6=\"\",\"NA\",SUMPRODUCT(($D$11:$D$60=E$6)*(($E$11:$E$60=$B7)+($E$11:$E$60='Step 0 - Configuration'!#REF!))))","v":"NA"},{"$f":"IF(F$6=\"\",\"NA\",SUMPRODUCT(($D$11:$D$60=F$6)*(($E$11:$E$60=$B7)+($E$11:$E$60='Step 0 - Configuration'!#REF!))))","v":"NA"},{"$f":"IF(G$6=\"\",\"NA\",SUMPRODUCT(($D$11:$D$60=G$6)*(($E$11:$E$60=$B7)+($E$11:$E$60='Step 0 - Configuration'!#REF!))))","v":"NA"},{"$f":"IF(H$6=\"\",\"NA\",SUMPRODUCT(($D$11:$D$60=H$6)*(($E$11:$E$60=$B7)+($E$11:$E$60='Step 0 - Configuration'!#REF!))))","v":"NA"},{"$f":"IF(I$6=\"\",\"NA\",SUMPRODUCT(($D$11:$D$60=I$6)*(($E$11:$E$60=$B7)+($E$11:$E$60='Step 0 - Configuration'!#REF!))))","v":"NA"},{"$f":"IF(J$6=\"\",\"NA\",SUMPRODUCT(($D$11:$D$60=J$6)*(($E$11:$E$60=$B7)+($E$11:$E$60='Step 0 - Configuration'!#REF!))))","v":"NA"},{"$f":"IF(K$6=\"\",\"NA\",SUMPRODUCT(($D$11:$D$60=K$6)*(($E$11:$E$60=$B7)+($E$11:$E$60='Step 0 - Configuration'!#REF!))))","v":"NA"},{"$f":"IF(L$6=\"\",\"NA\",SUMPRODUCT(($D$11:$D$60=L$6)*(($E$11:$E$60=$B7)+($E$11:$E$60='Step 0 - Configuration'!#REF!))))","v":"NA"}]
[null,{"$f":"'Step 0 - Configuration'!E5","v":"Sous-national"},{"$f":"IF(C$6=\"\",\"NA\",SUMPRODUCT(($D$11:$D$60=C$6)*(($E$11:$E$60=$B8)+($E$11:$E$60='Step 0 - Configuration'!#REF!))))","v":"NA"},{"$f":"IF(D$6=\"\",\"NA\",SUMPRODUCT(($D$11:$D$60=D$6)*(($E$11:$E$60=$B8)+($E$11:$E$60='Step 0 - Configuration'!#REF!))))","v":"NA"},{"$f":"IF(E$6=\"\",\"NA\",SUMPRODUCT(($D$11:$D$60=E$6)*(($E$11:$E$60=$B8)+($E$11:$E$60='Step 0 - Configuration'!#REF!))))","v":"NA"},{"$f":"IF(F$6=\"\",\"NA\",SUMPRODUCT(($D$11:$D$60=F$6)*(($E$11:$E$60=$B8)+($E$11:$E$60='Step 0 - Configuration'!#REF!))))","v":"NA"},{"$f":"IF(G$6=\"\",\"NA\",SUMPRODUCT(($D$11:$D$60=G$6)*(($E$11:$E$60=$B8)+($E$11:$E$60='Step 0 - Configuration'!#REF!))))","v":"NA"},{"$f":"IF(H$6=\"\",\"NA\",SUMPRODUCT(($D$11:$D$60=H$6)*(($E$11:$E$60=$B8)+($E$11:$E$60='Step 0 - Configuration'!#REF!))))","v":"NA"},{"$f":"IF(I$6=\"\",\"NA\",SUMPRODUCT(($D$11:$D$60=I$6)*(($E$11:$E$60=$B8)+($E$11:$E$60='Step 0 - Configuration'!#REF!))))","v":"NA"},{"$f":"IF(J$6=\"\",\"NA\",SUMPRODUCT(($D$11:$D$60=J$6)*(($E$11:$E$60=$B8)+($E$11:$E$60='Step 0 - Configuration'!#REF!))))","v":"NA"},{"$f":"IF(K$6=\"\",\"NA\",SUMPRODUCT(($D$11:$D$60=K$6)*(($E$11:$E$60=$B8)+($E$11:$E$60='Step 0 - Configuration'!#REF!))))","v":"NA"},{"$f":"IF(L$6=\"\",\"NA\",SUMPRODUCT(($D$11:$D$60=L$6)*(($E$11:$E$60=$B8)+($E$11:$E$60='Step 0 - Configuration'!#REF!))))","v":"NA"}]
[]
[null,"#","Nom d'indicateur","Catégorie","National / Sous-national","Fréquence","Vague","Annuler?"]
[null,{"$f":"IF(C11=\"\",\"\",1)","v":1},"% des enfants de 6–59 mois qui ont une infection palustre (par microscopie)",null,"National"]
[null,{"$f":"IF(OR(B11=\"\",C12=\"\"),\"\",B11+1)","v":2},"% de la population des ménages qui a dormi sous une MILDA la nuit précédente",null,"National"]
[null,{"$f":"IF(OR(B12=\"\",C13=\"\"),\"\",B12+1)","v":3},"Proportion des menages ayant l'acces universel aux MILDA (1 MILDA pour 2 personnes)",null,"National"]
[null,4,"% d’enfants de moins de 5 ans avec une fièvre au cours des 15 dernier jours qui ont subi une piqûre au doigt ou au talon pour le diagnostic du paludisme",null,"National"]
[null,5,"% de personnes qui sont capables de reconnaître au moins un symptome du paludisme",null,"National"]
[null,6,"% de personnes qui sont capables de reconnaître le moyen de transmission du paludisme",null,"National"]
[null,7,"Le taux d'execution des activites planifies dans le plan d'action annuel du PNLP",null,"National"]
[null,8,"Proportion de la contribution du gouvernement dans le financement de la lutte contre le paludisme",null,"National"]
[null,9,"Cas confirmés de paludisme pour 1 000 habitants",null,"Sous-national"]
[null,10,"Décès hospitaliers imputables au paludisme pour 100 000 habitants",null,"Sous-national"]
[null,11,"% de menages situees dans zones ciblees par la PID ayant beneficie de la pulvérisations intradomiciliaires à effet rémanent au cours des 12 derniers mois",null,"Sous-national"]
[null,12,"% des femmes enceintes ayant reçu un TPI avec au moins 3 dose de SP lors de CPN",null,"Sous-national"]
[null,13,"Proportion d’enfants ayant reçu une MILDA lors des CPS",null,"Sous-national"]
[null,14,"Proportion des femmes enceintes ayant reçu une MILDA lors des CPN",null,"Sous-national"]
[null,15,"Proportion de MILDA distribuées lors des campagnes de distribution de masse par rapport a la population ciblee",null,"Sous-national"]
[null,16,"Proportion des enfants de moins de 5 ans testés positifs au TDR et traités avec les CTA au niveau communautaire, conformément aux directives nationales",null,"Sous-national"]
[null,17,"% d’enfants < 5 ans ayant bénéficié d’une confirmation biologique du paludisme et qui ont reçu un traitement conformément à la politique nationale",null,"Sous-national"]
[null,18,"% de structures sanitaires sans ruptures de stocks des CTA (2-11 mois) dans les 3 mois",null,"Sous-national"]
[null,19,"% de structures sanitaires sans ruptures de stocks des TDR dans les 3 mois",null,"Sous-national"]
[null,20,"% de structures sanitaires sans ruptures de stocks des SP dans les 3 mois",null,"Sous-national"]
[null,21,"Taux de létalité hospitalière du paludisme (à tous les âges)",null,"Sous-national"]
[null,22,"Taux de létalité hospitalière du paludisme chez les enfants de moins de 5 ans",null,"Sous-national"]
[null,23,"Taux de complétude des rapports de donnes [par FOSA]",null,"Sous-national"]
[null,24,"Proportion des rapports complets transmis dans les délais",null,"Sous-national"]
[null,25,"Proportion des sites sentinelles ayant soumis leurs rapports mensuels dans les délais",null,"Sous-national"]
[null,26,"% d'épidémies du paludisme ayant fait l'objet de détection et de riposte dans les 15 jours ",null,"Sous-national"]
[null,27,"% des femmes enceintes qui ont bénéficié de SP3 conformément à la politique nationale",null,null,null,2]
[null,28,"% d’épidémies de paludisme ayant fait l’objet de détection précoce et de riposte dans les 15 jours",null,null,null,2]
[null,29,"% des gîtes larvaires traités",null,null,null,2]
[null,30,"Proportion de MILDA distribuées à travers des écoles et les OAC par rapport au MILDA planifier a ete distribue",null,null,null,2]
[null,31,"Proportion d’établissements de santé ayant une concordance des données ≥ 80% au cours des RDQA",null,null,null,2]
[null,""]
[null,""]
[null,""]
[null,""]
[null,""]
[null,""]
[null,""]
[null,""]
[null,""]
[null,""]
[]
[null,""]
[null,""]
[null,""]
[null,""]
[null,""]
[null,""]
[null,""]
[null,""]
[null,{"$f":"IF(OR(B60=\"\",C61=\"\"),\"\",B60+1)","v":""}]
[null,""]
[null,""]
[null,""]
[null,""]
[null,""]
[null,""]
[null,""]
[null,""]
[null,""]
[null,""]
[null,""]
[null,""]
[null,""]
[null,""]
[null,""]
[null,""]
[null,""]
[null,""]
[null,""]
[null,""]
[null,""]
[null,""]
[null,""]
[null,""]
[null,""]
[null,""]
[null,""]
[null,""]
[null,""]
[null,""]
[null,""]
[null,""]
[null,""]
[null,""]
[null,""]
[null,""]
[null,""]
[null,""]
[null,""]
[null,""]
[null,""]
[null,""]
[null,""]
[null,""]
[null,""]
[null,""]
[null,""]
[null,""]
[null,""]
[null,""]
[null,""]
[null,""]
[null,""]
[null,""]
[null,""]
[null,""]
[null,""]
[null,""]
[null,""]

{"sheet":"Étape 3 - Définir indicateurs","index":3,"n_rows":120,"n_cols":7,"rows_kept":120,"cut":false,"hidden":false,"merged":[]}
[]
[null,{"$f":"CONCATENATE('Step 0 - Configuration'!C3,\": \",'Step 0 - Configuration'!C6)","v":"NOM DU PAYS: NOM DE LA CARTE DE SCORE"}]
[null,"Étape 3: Définitions des indicateurs"]
[]
[]
[null,"Nom de l'indicateur","Category","National / Subnational","Numérateur","Dénominateur","Source de données"]
[null,null,{"$f":"IF('Étape 2 - Sélection indicateurs'!D11=\"\",\"\",'Étape 2 - Sélection indicateurs'!D11)","v":""},{"$f":"IF('Étape 2 - Sélection indicateurs'!E11=\"\",\"\",'Étape 2 - Sélection indicateurs'!E11)","v":"National"}]
[null,null,{"$f":"IF('Étape 2 - Sélection indicateurs'!D12=\"\",\"\",'Étape 2 - Sélection indicateurs'!D12)","v":""},{"$f":"IF('Étape 2 - Sélection indicateurs'!E12=\"\",\"\",'Étape 2 - Sélection indicateurs'!E12)","v":"National"}]
[null,null,{"$f":"IF('Étape 2 - Sélection indicateurs'!D13=\"\",\"\",'Étape 2 - Sélection indicateurs'!D13)","v":""},{"$f":"IF('Étape 2 - Sélection indicateurs'!E13=\"\",\"\",'Étape 2 - Sélection indicateurs'!E13)","v":"National"}]
[null,null,{"$f":"IF('Étape 2 - Sélection indicateurs'!D14=\"\",\"\",'Étape 2 - Sélection indicateurs'!D14)","v":""},{"$f":"IF('Étape 2 - Sélection indicateurs'!E14=\"\",\"\",'Étape 2 - Sélection indicateurs'!E14)","v":"National"}]
[null,null,{"$f":"IF('Étape 2 - Sélection indicateurs'!D15=\"\",\"\",'Étape 2 - Sélection indicateurs'!D15)","v":""},{"$f":"IF('Étape 2 - Sélection indicateurs'!E15=\"\",\"\",'Étape 2 - Sélection indicateurs'!E15)","v":"National"}]
[null,null,{"$f":"IF('Étape 2 - Sélection indicateurs'!D16=\"\",\"\",'Étape 2 - Sélection indicateurs'!D16)","v":""},{"$f":"IF('Étape 2 - Sélection indicateurs'!E16=\"\",\"\",'Étape 2 - Sélection indicateurs'!E16)","v":"National"}]
[null,null,{"$f":"IF('Étape 2 - Sélection indicateurs'!D17=\"\",\"\",'Étape 2 - Sélection indicateurs'!D17)","v":""},{"$f":"IF('Étape 2 - Sélection indicateurs'!E17=\"\",\"\",'Étape 2 - Sélection indicateurs'!E17)","v":"National"}]
[null,null,{"$f":"IF('Étape 2 - Sélection indicateurs'!D18=\"\",\"\",'Étape 2 - Sélection indicateurs'!D18)","v":""},{"$f":"IF('Étape 2 - Sélection indicateurs'!E18=\"\",\"\",'Étape 2 - Sélection indicateurs'!E18)","v":"National"}]
[null,null,{"$f":"IF('Étape 2 - Sélection indicateurs'!D19=\"\",\"\",'Étape 2 - Sélection indicateurs'!D19)","v":""},{"$f":"IF('Étape 2 - Sélection indicateurs'!E19=\"\",\"\",'Étape 2 - Sélection indicateurs'!E19)","v":"Sous-national"}]
[null,null,{"$f":"IF('Étape 2 - Sélection indicateurs'!D20=\"\",\"\",'Étape 2 - Sélection indicateurs'!D20)","v":""},{"$f":"IF('Étape 2 - Sélection indicateurs'!E20=\"\",\"\",'Étape 2 - Sélection indicateurs'!E20)","v":"Sous-national"}]
[null,null,{"$f":"IF('Étape 2 - Sélection indicateurs'!D21=\"\",\"\",'Étape 2 - Sélection indicateurs'!D21)","v":""},{"$f":"IF('Étape 2 - Sélection indicateurs'!E21=\"\",\"\",'Étape 2 - Sélection indicateurs'!E21)","v":"Sous-national"}]
[null,null,{"$f":"IF('Étape 2 - Sélection indicateurs'!D22=\"\",\"\",'Étape 2 - Sélection indicateurs'!D22)","v":""},{"$f":"IF('Étape 2 - Sélection indicateurs'!E22=\"\",\"\",'Étape 2 - Sélection indicateurs'!E22)","v":"Sous-national"}]
[null,null,{"$f":"IF('Étape 2 - Sélection indicateurs'!D23=\"\",\"\",'Étape 2 - Sélection indicateurs'!D23)","v":""},{"$f":"IF('Étape 2 - Sélection indicateurs'!E23=\"\",\"\",'Étape 2 - Sélection indicateurs'!E23)","v":"Sous-national"}]
[null,null,{"$f":"IF('Étape 2 - Sélection indicateurs'!D24=\"\",\"\",'Étape 2 - Sélection indicateurs'!D24)","v":""},{"$f":"IF('Étape 2 - Sélection indicateurs'!E24=\"\",\"\",'Étape 2 - Sélection indicateurs'!E24)","v":"Sous-national"}]
[null,null,{"$f":"IF('Étape 2 - Sélection indicateurs'!D25=\"\",\"\",'Étape 2 - Sélection indicateurs'!D25)","v":""},{"$f":"IF('Étape 2 - Sélection indicateurs'!E25=\"\",\"\",'Étape 2 - Sélection indicateurs'!E25)","v":"Sous-national"}]
[null,null,{"$f":"IF('Étape 2 - Sélection indicateurs'!D26=\"\",\"\",'Étape 2 - Sélection indicateurs'!D26)","v":""},{"$f":"IF('Étape 2 - Sélection indicateurs'!E26=\"\",\"\",'Étape 2 - Sélection indicateurs'!E26)","v":"Sous-national"}]
[null,null,{"$f":"IF('Étape 2 - Sélection indicateurs'!D27=\"\",\"\",'Étape 2 - Sélection indicateurs'!D27)","v":""},{"$f":"IF('Étape 2 - Sélection indicateurs'!E27=\"\",\"\",'Étape 2 - Sélection indicateurs'!E27)","v":"Sous-national"}]
[null,null,{"$f":"IF('Étape 2 - Sélection indicateurs'!D28=\"\",\"\",'Étape 2 - Sélection indicateurs'!D28)","v":""},{"$f":"IF('Étape 2 - Sélection indicateurs'!E28=\"\",\"\",'Étape 2 - Sélection indicateurs'!E28)","v":"Sous-national"}]
[null,null,{"$f":"IF('Étape 2 - Sélection indicateurs'!D29=\"\",\"\",'Étape 2 - Sélection indicateurs'!D29)","v":""},{"$f":"IF('Étape 2 - Sélection indicateurs'!E29=\"\",\"\",'Étape 2 - Sélection indicateurs'!E29)","v":"Sous-national"}]
[null,null,{"$f":"IF('Étape 2 - Sélection indicateurs'!D30=\"\",\"\",'Étape 2 - Sélection indicateurs'!D30)","v":""},{"$f":"IF('Étape 2 - Sélection indicateurs'!E30=\"\",\"\",'Étape 2 - Sélection indicateurs'!E30)","v":"Sous-national"}]
[null,null,{"$f":"IF('Étape 2 - Sélection indicateurs'!D31=\"\",\"\",'Étape 2 - Sélection indicateurs'!D31)","v":""},{"$f":"IF('Étape 2 - Sélection indicateurs'!E31=\"\",\"\",'Étape 2 - Sélection indicateurs'!E31)","v":"Sous-national"}]
[null,null,{"$f":"IF('Étape 2 - Sélection indicateurs'!D32=\"\",\"\",'Étape 2 - Sélection indicateurs'!D32)","v":""},{"$f":"IF('Étape 2 - Sélection indicateurs'!E32=\"\",\"\",'Étape 2 - Sélection indicateurs'!E32)","v":"Sous-national"}]
[null,null,{"$f":"IF('Étape 2 - Sélection indicateurs'!D33=\"\",\"\",'Étape 2 - Sélection indicateurs'!D33)","v":""},{"$f":"IF('Étape 2 - Sélection indicateurs'!E33=\"\",\"\",'Étape 2 - Sélection indicateurs'!E33)","v":"Sous-national"}]
[null,null,{"$f":"IF('Étape 2 - Sélection indicateurs'!D34=\"\",\"\",'Étape 2 - Sélection indicateurs'!D34)","v":""},{"$f":"IF('Étape 2 - Sélection indicateurs'!E34=\"\",\"\",'Étape 2 - Sélection indicateurs'!E34)","v":"Sous-national"}]
[null,null,{"$f":"IF('Étape 2 - Sélection indicateurs'!D35=\"\",\"\",'Étape 2 - Sélection indicateurs'!D35)","v":""},{"$f":"IF('Étape 2 - Sélection indicateurs'!E35=\"\",\"\",'Étape 2 - Sélection indicateurs'!E35)","v":"Sous-national"}]
[null,null,{"$f":"IF('Étape 2 - Sélection indicateurs'!D36=\"\",\"\",'Étape 2 - Sélection indicateurs'!D36)","v":""},{"$f":"IF('Étape 2 - Sélection indicateurs'!E36=\"\",\"\",'Étape 2 - Sélection indicateurs'!E36)","v":"Sous-national"}]
[null,null,{"$f":"IF('Étape 2 - Sélection indicateurs'!D37=\"\",\"\",'Étape 2 - Sélection indicateurs'!D37)","v":""},{"$f":"IF('Étape 2 - Sélection indicateurs'!E37=\"\",\"\",'Étape 2 - Sélection indicateurs'!E37)","v":""}]
[null,null,{"$f":"IF('Étape 2 - Sélection indicateurs'!D38=\"\",\"\",'Étape 2 - Sélection indicateurs'!D38)","v":""},{"$f":"IF('Étape 2 - Sélection indicateurs'!E38=\"\",\"\",'Étape 2 - Sélection indicateurs'!E38)","v":""}]
[null,null,{"$f":"IF('Étape 2 - Sélection indicateurs'!D39=\"\",\"\",'Étape 2 - Sélection indicateurs'!D39)","v":""},{"$f":"IF('Étape 2 - Sélection indicateurs'!E39=\"\",\"\",'Étape 2 - Sélection indicateurs'!E39)","v":""}]
[null,null,{"$f":"IF('Étape 2 - Sélection indicateurs'!D40=\"\",\"\",'Étape 2 - Sélection indicateurs'!D40)","v":""},{"$f":"IF('Étape 2 - Sélection indicateurs'!E40=\"\",\"\",'Étape 2 - Sélection indicateurs'!E40)","v":""}]
[null,null,{"$f":"IF('Étape 2 - Sélection indicateurs'!D41=\"\",\"\",'Étape 2 - Sélection indicateurs'!D41)","v":""},{"$f":"IF('Étape 2 - Sélection indicateurs'!E41=\"\",\"\",'Étape 2 - Sélection indicateurs'!E41)","v":""}]
[null,{"$f":"IF('Étape 2 - Sélection indicateurs'!C42=\"\",\"\",'Étape 2 - Sélection indicateurs'!C42)","v":""},{"$f":"IF('Étape 2 - Sélection indicateurs'!D42=\"\",\"\",'Étape 2 - Sélection indicateurs'!D42)","v":""},{"$f":"IF('Étape 2 - Sélection indicateurs'!E42=\"\",\"\",'Étape 2 - Sélection indicateurs'!E42)","v":""}]
[null,{"$f":"IF('Étape 2 - Sélection indicateurs'!C43=\"\",\"\",'Étape 2 - Sélection indicateurs'!C43)","v":""},{"$f":"IF('Étape 2 - Sélection indicateurs'!D43=\"\",\"\",'Étape 2 - Sélection indicateurs'!D43)","v":""},{"$f":"IF('Étape 2 - Sélection indicateurs'!E43=\"\",\"\",'Étape 2 - Sélection indicateurs'!E43)","v":""}]
[null,{"$f":"IF('Étape 2 - Sélection indicateurs'!C44=\"\",\"\",'Étape 2 - Sélection indicateurs'!C44)","v":""},{"$f":"IF('Étape 2 - Sélection indicateurs'!D44=\"\",\"\",'Étape 2 - Sélection indicateurs'!D44)","v":""},{"$f":"IF('Étape 2 - Sélection indicateurs'!E44=\"\",\"\",'Étape 2 - Sélection indicateurs'!E44)","v":""}]
[null,{"$f":"IF('Étape 2 - Sélection indicateurs'!C45=\"\",\"\",'Étape 2 - Sélection indicateurs'!C45)","v":""},{"$f":"IF('Étape 2 - Sélection indicateurs'!D45=\"\",\"\",'Étape 2 - Sélection indicateurs'!D45)","v":""},{"$f":"IF('Étape 2 - Sélection indicateurs'!E45=\"\",\"\",'Étape 2 - Sélection indicateurs'!E45)","v":""}]
[null,{"$f":"IF('Étape 2 - Sélection indicateurs'!C46=\"\",\"\",'Étape 2 - Sélection indicateurs'!C46)","v":""},{"$f":"IF('Étape 2 - Sélection indicateurs'!D46=\"\",\"\",'Étape 2 - Sélection indicateurs'!D46)","v":""},{"$f":"IF('Étape 2 - Sélection indicateurs'!E46=\"\",\"\",'Étape 2 - Sélection indicateurs'!E46)","v":""}]
[null,{"$f":"IF('Étape 2 - Sélection indicateurs'!C47=\"\",\"\",'Étape 2 - Sélection indicateurs'!C47)","v":""},{"$f":"IF('Étape 2 - Sélection indicateurs'!D47=\"\",\"\",'Étape 2 - Sélection indicateurs'!D47)","v":""},{"$f":"IF('Étape 2 - Sélection indicateurs'!E47=\"\",\"\",'Étape 2 - Sélection indicateurs'!E47)","v":""}]
[null,{"$f":"IF('Étape 2 - Sélection indicateurs'!C48=\"\",\"\",'Étape 2 - Sélection indicateurs'!C48)","v":""},{"$f":"IF('Étape 2 - Sélection indicateurs'!D48=\"\",\"\",'Étape 2 - Sélection indicateurs'!D48)","v":""},{"$f":"IF('Étape 2 - Sélection indicateurs'!E48=\"\",\"\",'Étape 2 - Sélection indicateurs'!E48)","v":""}]
[null,{"$f":"IF('Étape 2 - Sélection indicateurs'!C49=\"\",\"\",'Étape 2 - Sélection indicateurs'!C49)","v":""},{"$f":"IF('Étape 2 - Sélection indicateurs'!D49=\"\",\"\",'Étape 2 - Sélection indicateurs'!D49)","v":""},{"$f":"IF('Étape 2 - Sélection indicateurs'!E49=\"\",\"\",'Étape 2 - Sélection indicateurs'!E49)","v":""}]
[null,{"$f":"IF('Étape 2 - Sélection indicateurs'!C50=\"\",\"\",'Étape 2 - Sélection indicateurs'!C50)","v":""},{"$f":"IF('Étape 2 - Sélection indicateurs'!D50=\"\",\"\",'Étape 2 - Sélection indicateurs'!D50)","v":""},{"$f":"IF('Étape 2 - Sélection indicateurs'!E50=\"\",\"\",'Étape 2 - Sélection indicateurs'!E50)","v":""}]
[null,{"$f":"IF('Étape 2 - Sélection indicateurs'!C51=\"\",\"\",'Étape 2 - Sélection indicateurs'!C51)","v":""},{"$f":"IF('Étape 2 - Sélection indicateurs'!D51=\"\",\"\",'Étape 2 - Sélection indicateurs'!D51)","v":""},{"$f":"IF('Étape 2 - Sélection indicateurs'!E51=\"\",\"\",'Étape 2 - Sélection indicateurs'!E51)","v":""}]
[null,{"$f":"IF('Étape 2 - Sélection indicateurs'!C52=\"\",\"\",'Étape 2 - Sélection indicateurs'!C52)","v":""},{"$f":"IF('Étape 2 - Sélection indicateurs'!D52=\"\",\"\",'Étape 2 - Sélection indicateurs'!D52)","v":""},{"$f":"IF('Étape 2 - Sélection indicateurs'!E52=\"\",\"\",'Étape 2 - Sélection indicateurs'!E52)","v":""}]
[null,{"$f":"IF('Étape 2 - Sélection indicateurs'!C53=\"\",\"\",'Étape 2 - Sélection indicateurs'!C53)","v":""},{"$f":"IF('Étape 2 - Sélection indicateurs'!D53=\"\",\"\",'Étape 2 - Sélection indicateurs'!D53)","v":""},{"$f":"IF('Étape 2 - Sélection indicateurs'!E53=\"\",\"\",'Étape 2 - Sélection indicateurs'!E53)","v":""}]
[null,{"$f":"IF('Étape 2 - Sélection indicateurs'!C54=\"\",\"\",'Étape 2 - Sélection indicateurs'!C54)","v":""},{"$f":"IF('Étape 2 - Sélection indicateurs'!D54=\"\",\"\",'Étape 2 - Sélection indicateurs'!D54)","v":""},{"$f":"IF('Étape 2 - Sélection indicateurs'!E54=\"\",\"\",'Étape 2 - Sélection indicateurs'!E54)","v":""}]
[null,{"$f":"IF('Étape 2 - Sélection indicateurs'!C55=\"\",\"\",'Étape 2 - Sélection indicateurs'!C55)","v":""},{"$f":"IF('Étape 2 - Sélection indicateurs'!D55=\"\",\"\",'Étape 2 - Sélection indicateurs'!D55)","v":""},{"$f":"IF('Étape 2 - Sélection indicateurs'!E55=\"\",\"\",'Étape 2 - Sélection indicateurs'!E55)","v":""}]
[null,{"$f":"IF('Étape 2 - Sélection indicateurs'!C56=\"\",\"\",'Étape 2 - Sélection indicateurs'!C56)","v":""},{"$f":"IF('Étape 2 - Sélection indicateurs'!D56=\"\",\"\",'Étape 2 - Sélection indicateurs'!D56)","v":""},{"$f":"IF('Étape 2 - Sélection indicateurs'!E56=\"\",\"\",'Étape 2 - Sélection indicateurs'!E56)","v":""}]
[null,{"$f":"IF('Étape 2 - Sélection indicateurs'!C57=\"\",\"\",'Étape 2 - Sélection indicateurs'!C57)","v":""},{"$f":"IF('Étape 2 - Sélection indicateurs'!D57=\"\",\"\",'Étape 2 - Sélection indicateurs'!D57)","v":""},{"$f":"IF('Étape 2 - Sélection indicateurs'!E57=\"\",\"\",'Étape 2 - Sélection indicateurs'!E57)","v":""}]
[null,{"$f":"IF('Étape 2 - Sélection indicateurs'!C58=\"\",\"\",'Étape 2 - Sélection indicateurs'!C58)","v":""},{"$f":"IF('Étape 2 - Sélection indicateurs'!D58=\"\",\"\",'Étape 2 - Sélection indicateurs'!D58)","v":""},{"$f":"IF('Étape 2 - Sélection indicateurs'!E58=\"\",\"\",'Étape 2 - Sélection indicateurs'!E58)","v":""}]
[null,{"$f":"IF('Étape 2 - Sélection indicateurs'!C59=\"\",\"\",'Étape 2 - Sélection indicateurs'!C59)","v":""},{"$f":"IF('Étape 2 - Sélection indicateurs'!D59=\"\",\"\",'Étape 2 - Sélection indicateurs'!D59)","v":""},{"$f":"IF('Étape 2 - Sélection indicateurs'!E59=\"\",\"\",'Étape 2 - Sélection indicateurs'!E59)","v":""}]
[null,{"$f":"IF('Étape 2 - Sélection indicateurs'!C60=\"\",\"\",'Étape 2 - Sélection indicateurs'!C60)","v":""},{"$f":"IF('Étape 2 - Sélection indicateurs'!D60=\"\",\"\",'Étape 2 - Sélection indicateurs'!D60)","v":""},{"$f":"IF('Étape 2 - Sélection indicateurs'!E60=\"\",\"\",'Étape 2 - Sélection indicateurs'!E60)","v":""}]
[null,{"$f":"IF('Étape 2 - Sélection indicateurs'!C61=\"\",\"\",'Étape 2 - Sélection indicateurs'!C61)","v":""},{"$f":"IF('Étape 2 - Sélection indicateurs'!D61=\"\",\"\",'Étape 2 - Sélection indicateurs'!D61)","v":""},{"$f":"IF('Étape 2 - Sélection indicateurs'!E61=\"\",\"\",'Étape 2 - Sélection indicateurs'!E61)","v":""}]
[null,{"$f":"IF('Étape 2 - Sélection indicateurs'!C62=\"\",\"\",'Étape 2 - Sélection indicateurs'!C62)","v":""},{"$f":"IF('Étape 2 - Sélection indicateurs'!D62=\"\",\"\",'Étape 2 - Sélection indicateurs'!D62)","v":""},{"$f":"IF('Étape 2 - Sélection indicateurs'!E62=\"\",\"\",'Étape 2 - Sélection indicateurs'!E62)","v":""}]
[null,{"$f":"IF('Étape 2 - Sélection indicateurs'!C63=\"\",\"\",'Étape 2 - Sélection indicateurs'!C63)","v":""},{"$f":"IF('Étape 2 - Sélection indicateurs'!D63=\"\",\"\",'Étape 2 - Sélection indicateurs'!D63)","v":""},{"$f":"IF('Étape 2 - Sélection indicateurs'!E63=\"\",\"\",'Étape 2 - Sélection indicateurs'!E63)","v":""}]
[null,{"$f":"IF('Étape 2 - Sélection indicateurs'!C64=\"\",\"\",'Étape 2 - Sélection indicateurs'!C64)","v":""},{"$f":"IF('Étape 2 - Sélection indicateurs'!D64=\"\",\"\",'Étape 2 - Sélection indicateurs'!D64)","v":""},{"$f":"IF('Étape 2 - Sélection indicateurs'!E64=\"\",\"\",'Étape 2 - Sélection indicateurs'!E64)","v":""}]
[null,{"$f":"IF('Étape 2 - Sélection indicateurs'!C65=\"\",\"\",'Étape 2 - Sélection indicateurs'!C65)","v":""},{"$f":"IF('Étape 2 - Sélection indicateurs'!D65=\"\",\"\",'Étape 2 - Sélection indicateurs'!D65)","v":""},{"$f":"IF('Étape 2 - Sélection indicateurs'!E65=\"\",\"\",'Étape 2 - Sélection indicateurs'!E65)","v":""}]
[null,{"$f":"IF('Étape 2 - Sélection indicateurs'!C66=\"\",\"\",'Étape 2 - Sélection indicateurs'!C66)","v":""},{"$f":"IF('Étape 2 - Sélection indicateurs'!D66=\"\",\"\",'Étape 2 - Sélection indicateurs'!D66)","v":""},{"$f":"IF('Étape 2 - Sélection indicateurs'!E66=\"\",\"\",'Étape 2 - Sélection indicateurs'!E66)","v":""}]
[null,{"$f":"IF('Étape 2 - Sélection indicateurs'!C67=\"\",\"\",'Étape 2 - Sélection indicateurs'!C67)","v":""},{"$f":"IF('Étape 2 - Sélection indicateurs'!D67=\"\",\"\",'Étape 2 - Sélection indicateurs'!D67)","v":""},{"$f":"IF('Étape 2 - Sélection indicateurs'!E67=\"\",\"\",'Étape 2 - Sélection indicateurs'!E67)","v":""}]
[null,{"$f":"IF('Étape 2 - Sélection indicateurs'!C68=\"\",\"\",'Étape 2 - Sélection indicateurs'!C68)","v":""},{"$f":"IF('Étape 2 - Sélection indicateurs'!D68=\"\",\"\",'Étape 2 - Sélection indicateurs'!D68)","v":""},{"$f":"IF('Étape 2 - Sélection indicateurs'!E68=\"\",\"\",'Étape 2 - Sélection indicateurs'!E68)","v":""}]
[null,{"$f":"IF('Étape 2 - Sélection indicateurs'!C69=\"\",\"\",'Étape 2 - Sélection indicateurs'!C69)","v":""},{"$f":"IF('Étape 2 - Sélection indicateurs'!D69=\"\",\"\",'Étape 2 - Sélection indicateurs'!D69)","v":""},{"$f":"IF('Étape 2 - Sélection indicateurs'!E69=\"\",\"\",'Étape 2 - Sélection indicateurs'!E69)","v":""}]
[null,{"$f":"IF('Étape 2 - Sélection indicateurs'!C70=\"\",\"\",'Étape 2 - Sélection indicateurs'!C70)","v":""},{"$f":"IF('Étape 2 - Sélection indicateurs'!D70=\"\",\"\",'Étape 2 - Sélection indicateurs'!D70)","v":""},{"$f":"IF('Étape 2 - Sélection indicateurs'!E70=\"\",\"\",'Étape 2 - Sélection indicateurs'!E70)","v":""}]
[null,{"$f":"IF('Étape 2 - Sélection indicateurs'!C71=\"\",\"\",'Étape 2 - Sélection indicateurs'!C71)","v":""},{"$f":"IF('Étape 2 - Sélection indicateurs'!D71=\"\",\"\",'Étape 2 - Sélection indicateurs'!D71)","v":""},{"$f":"IF('Étape 2 - Sélection indicateurs'!E71=\"\",\"\",'Étape 2 - Sélection indicateurs'!E71)","v":""}]
[null,{"$f":"IF('Étape 2 - Sélection indicateurs'!C72=\"\",\"\",'Étape 2 - Sélection indicateurs'!C72)","v":""},{"$f":"IF('Étape 2 - Sélection indicateurs'!D72=\"\",\"\",'Étape 2 - Sélection indicateurs'!D72)","v":""},{"$f":"IF('Étape 2 - Sélection indicateurs'!E72=\"\",\"\",'Étape 2 - Sélection indicateurs'!E72)","v":""}]
[null,{"$f":"IF('Étape 2 - Sélection indicateurs'!C73=\"\",\"\",'Étape 2 - Sélection indicateurs'!C73)","v":""},{"$f":"IF('Étape 2 - Sélection indicateurs'!D73=\"\",\"\",'Étape 2 - Sélection indicateurs'!D73)","v":""},{"$f":"IF('Étape 2 - Sélection indicateurs'!E73=\"\",\"\",'Étape 2 - Sélection indicateurs'!E73)","v":""}]
[null,{"$f":"IF('Étape 2 - Sélection indicateurs'!C74=\"\",\"\",'Étape 2 - Sélection indicateurs'!C74)","v":""},{"$f":"IF('Étape 2 - Sélection indicateurs'!D74=\"\",\"\",'Étape 2 - Sélection indicateurs'!D74)","v":""},{"$f":"IF('Étape 2 - Sélection indicateurs'!E74=\"\",\"\",'Étape 2 - Sélection indicateurs'!E74)","v":""}]
[null,{"$f":"IF('Étape 2 - Sélection indicateurs'!C75=\"\",\"\",'Étape 2 - Sélection indicateurs'!C75)","v":""},{"$f":"IF('Étape 2 - Sélection indicateurs'!D75=\"\",\"\",'Étape 2 - Sélection indicateurs'!D75)","v":""},{"$f":"IF('Étape 2 - Sélection indicateurs'!E75=\"\",\"\",'Étape 2 - Sélection indicateurs'!E75)","v":""}]
[null,{"$f":"IF('Étape 2 - Sélection indicateurs'!C76=\"\",\"\",'Étape 2 - Sélection indicateurs'!C76)","v":""},{"$f":"IF('Étape 2 - Sélection indicateurs'!D76=\"\",\"\",'Étape 2 - Sélection indicateurs'!D76)","v":""},{"$f":"IF('Étape 2 - Sélection indicateurs'!E76=\"\",\"\",'Étape 2 - Sélection indicateurs'!E76)","v":""}]
[null,{"$f":"IF('Étape 2 - Sélection indicateurs'!C77=\"\",\"\",'Étape 2 - Sélection indicateurs'!C77)","v":""},{"$f":"IF('Étape 2 - Sélection indicateurs'!D77=\"\",\"\",'Étape 2 - Sélection indicateurs'!D77)","v":""},{"$f":"IF('Étape 2 - Sélection indicateurs'!E77=\"\",\"\",'Étape 2 - Sélection indicateurs'!E77)","v":""}]
[null,{"$f":"IF('Étape 2 - Sélection indicateurs'!C78=\"\",\"\",'Étape 2 - Sélection indicateurs'!C78)","v":""},{"$f":"IF('Étape 2 - Sélection indicateurs'!D78=\"\",\"\",'Étape 2 - Sélection indicateurs'!D78)","v":""},{"$f":"IF('Étape 2 - Sélection indicateurs'!E78=\"\",\"\",'Étape 2 - Sélection indicateurs'!E78)","v":""}]
[null,{"$f":"IF('Étape 2 - Sélection indicateurs'!C79=\"\",\"\",'Étape 2 - Sélection indicateurs'!C79)","v":""},{"$f":"IF('Étape 2 - Sélection indicateurs'!D79=\"\",\"\",'Étape 2 - Sélection indicateurs'!D79)","v":""},{"$f":"IF('Étape 2 - Sélection indicateurs'!E79=\"\",\"\",'Étape 2 - Sélection indicateurs'!E79)","v":""}]
[null,{"$f":"IF('Étape 2 - Sélection indicateurs'!C80=\"\",\"\",'Étape 2 - Sélection indicateurs'!C80)","v":""},{"$f":"IF('Étape 2 - Sélection indicateurs'!D80=\"\",\"\",'Étape 2 - Sélection indicateurs'!D80)","v":""},{"$f":"IF('Étape 2 - Sélection indicateurs'!E80=\"\",\"\",'Étape 2 - Sélection indicateurs'!E80)","v":""}]
[null,{"$f":"IF('Étape 2 - Sélection indicateurs'!C81=\"\",\"\",'Étape 2 - Sélection indicateurs'!C81)","v":""},{"$f":"IF('Étape 2 - Sélection indicateurs'!D81=\"\",\"\",'Étape 2 - Sélection indicateurs'!D81)","v":""},{"$f":"IF('Étape 2 - Sélection indicateurs'!E81=\"\",\"\",'Étape 2 - Sélection indicateurs'!E81)","v":""}]
[null,{"$f":"IF('Étape 2 - Sélection indicateurs'!C82=\"\",\"\",'Étape 2 - Sélection indicateurs'!C82)","v":""},{"$f":"IF('Étape 2 - Sélection indicateurs'!D82=\"\",\"\",'Étape 2 - Sélection indicateurs'!D82)","v":""},{"$f":"IF('Étape 2 - Sélection indicateurs'!E82=\"\",\"\",'Étape 2 - Sélection indicateurs'!E82)","v":""}]
[null,{"$f":"IF('Étape 2 - Sélection indicateurs'!C83=\"\",\"\",'Étape 2 - Sélection indicateurs'!C83)","v":""},{"$f":"IF('Étape 2 - Sélection indicateurs'!D83=\"\",\"\",'Étape 2 - Sélection indicateurs'!D83)","v":""},{"$f":"IF('Étape 2 - Sélection indicateurs'!E83=\"\",\"\",'Étape 2 - Sélection indicateurs'!E83)","v":""}]
[null,{"$f":"IF('Étape 2 - Sélection indicateurs'!C84=\"\",\"\",'Étape 2 - Sélection indicateurs'!C84)","v":""},{"$f":"IF('Étape 2 - Sélection indicateurs'!D84=\"\",\"\",'Étape 2 - Sélection indicateurs'!D84)","v":""},{"$f":"IF('Étape 2 - Sélection indicateurs'!E84=\"\",\"\",'Étape 2 - Sélection indicateurs'!E84)","v":""}]
[null,{"$f":"IF('Étape 2 - Sélection indicateurs'!C85=\"\",\"\",'Étape 2 - Sélection indicateurs'!C85)","v":""},{"$f":"IF('Étape 2 - Sélection indicateurs'!D85=\"\",\"\",'Étape 2 - Sélection indicateurs'!D85)","v":""},{"$f":"IF('Étape 2 - Sélection indicateurs'!E85=\"\",\"\",'Étape 2 - Sélection indicateurs'!E85)","v":""}]
[null,{"$f":"IF('Étape 2 - Sélection indicateurs'!C86=\"\",\"\",'Étape 2 - Sélection indicateurs'!C86)","v":""},{"$f":"IF('Étape 2 - Sélection indicateurs'!D86=\"\",\"\",'Étape 2 - Sélection indicateurs'!D86)","v":""},{"$f":"IF('Étape 2 - Sélection indicateurs'!E86=\"\",\"\",'Étape 2 - Sélection indicateurs'!E86)","v":""}]
[null,{"$f":"IF('Étape 2 - Sélection indicateurs'!C87=\"\",\"\",'Étape 2 - Sélection indicateurs'!C87)","v":""},{"$f":"IF('Étape 2 - Sélection indicateurs'!D87=\"\",\"\",'Étape 2 - Sélection indicateurs'!D87)","v":""},{"$f":"IF('Étape 2 - Sélection indicateurs'!E87=\"\",\"\",'Étape 2 - Sélection indicateurs'!E87)","v":""}]
[null,{"$f":"IF('Étape 2 - Sélection indicateurs'!C88=\"\",\"\",'Étape 2 - Sélection indicateurs'!C88)","v":""},{"$f":"IF('Étape 2 - Sélection indicateurs'!D88=\"\",\"\",'Étape 2 - Sélection indicateurs'!D88)","v":""},{"$f":"IF('Étape 2 - Sélection indicateurs'!E88=\"\",\"\",'Étape 2 - Sélection indicateurs'!E88)","v":""}]
[null,{"$f":"IF('Étape 2 - Sélection indicateurs'!C89=\"\",\"\",'Étape 2 - Sélection indicateurs'!C89)","v":""},{"$f":"IF('Étape 2 - Sélection indicateurs'!D89=\"\",\"\",'Étape 2 - Sélection indicateurs'!D89)","v":""},{"$f":"IF('Étape 2 - Sélection indicateurs'!E89=\"\",\"\",'Étape 2 - Sélection indicateurs'!E89)","v":""}]
[null,{"$f":"IF('Étape 2 - Sélection indicateurs'!C90=\"\",\"\",'Étape 2 - Sélection indicateurs'!C90)","v":""},{"$f":"IF('Étape 2 - Sélection indicateurs'!D90=\"\",\"\",'Étape 2 - Sélection indicateurs'!D90)","v":""},{"$f":"IF('Étape 2 - Sélection indicateurs'!E90=\"\",\"\",'Étape 2 - Sélection indicateurs'!E90)","v":""}]
[null,{"$f":"IF('Étape 2 - Sélection indicateurs'!C91=\"\",\"\",'Étape 2 - Sélection indicateurs'!C91)","v":""},{"$f":"IF('Étape 2 - Sélection indicateurs'!D91=\"\",\"\",'Étape 2 - Sélection indicateurs'!D91)","v":""},{"$f":"IF('Étape 2 - Sélection indicateurs'!E91=\"\",\"\",'Étape 2 - Sélection indicateurs'!E91)","v":""}]
[null,{"$f":"IF('Étape 2 - Sélection indicateurs'!C92=\"\",\"\",'Étape 2 - Sélection indicateurs'!C92)","v":""},{"$f":"IF('Étape 2 - Sélection indicateurs'!D92=\"\",\"\",'Étape 2 - Sélection indicateurs'!D92)","v":""},{"$f":"IF('Étape 2 - Sélection indicateurs'!E92=\"\",\"\",'Étape 2 - Sélection indicateurs'!E92)","v":""}]
[null,{"$f":"IF('Étape 2 - Sélection indicateurs'!C93=\"\",\"\",'Étape 2 - Sélection indicateurs'!C93)","v":""},{"$f":"IF('Étape 2 - Sélection indicateurs'!D93=\"\",\"\",'Étape 2 - Sélection indicateurs'!D93)","v":""},{"$f":"IF('Étape 2 - Sélection indicateurs'!E93=\"\",\"\",'Étape 2 - Sélection indicateurs'!E93)","v":""}]
[null,{"$f":"IF('Étape 2 - Sélection indicateurs'!C94=\"\",\"\",'Étape 2 - Sélection indicateurs'!C94)","v":""},{"$f":"IF('Étape 2 - Sélection indicateurs'!D94=\"\",\"\",'Étape 2 - Sélection indicateurs'!D94)","v":""},{"$f":"IF('Étape 2 - Sélection indicateurs'!E94=\"\",\"\",'Étape 2 - Sélection indicateurs'!E94)","v":""}]
[null,{"$f":"IF('Étape 2 - Sélection indicateurs'!C95=\"\",\"\",'Étape 2 - Sélection indicateurs'!C95)","v":""},{"$f":"IF('Étape 2 - Sélection indicateurs'!D95=\"\",\"\",'Étape 2 - Sélection indicateurs'!D95)","v":""},{"$f":"IF('Étape 2 - Sélection indicateurs'!E95=\"\",\"\",'Étape 2 - Sélection indicateurs'!E95)","v":""}]
[null,{"$f":"IF('Étape 2 - Sélection indicateurs'!C96=\"\",\"\",'Étape 2 - Sélection indicateurs'!C96)","v":""},{"$f":"IF('Étape 2 - Sélection indicateurs'!D96=\"\",\"\",'Étape 2 - Sélection indicateurs'!D96)","v":""},{"$f":"IF('Étape 2 - Sélection indicateurs'!E96=\"\",\"\",'Étape 2 - Sélection indicateurs'!E96)","v":""}]
[null,{"$f":"IF('Étape 2 - Sélection indicateurs'!C97=\"\",\"\",'Étape 2 - Sélection indicateurs'!C97)","v":""},{"$f":"IF('Étape 2 - Sélection indicateurs'!D97=\"\",\"\",'Étape 2 - Sélection indicateurs'!D97)","v":""},{"$f":"IF('Étape 2 - Sélection indicateurs'!E97=\"\",\"\",'Étape 2 - Sélection indicateurs'!E97)","v":""}]
[null,{"$f":"IF('Étape 2 - Sélection indicateurs'!C98=\"\",\"\",'Étape 2 - Sélection indicateurs'!C98)","v":""},{"$f":"IF('Étape 2 - Sélection indicateurs'!D98=\"\",\"\",'Étape 2 - Sélection indicateurs'!D98)","v":""},{"$f":"IF('Étape 2 - Sélection indicateurs'!E98=\"\",\"\",'Étape 2 - Sélection indicateurs'!E98)","v":""}]
[null,{"$f":"IF('Étape 2 - Sélection indicateurs'!C99=\"\",\"\",'Étape 2 - Sélection indicateurs'!C99)","v":""},{"$f":"IF('Étape 2 - Sélection indicateurs'!D99=\"\",\"\",'Étape 2 - Sélection indicateurs'!D99)","v":""},{"$f":"IF('Étape 2 - Sélection indicateurs'!E99=\"\",\"\",'Étape 2 - Sélection indicateurs'!E99)","v":""}]
[null,{"$f":"IF('Étape 2 - Sélection indicateurs'!C100=\"\",\"\",'Étape 2 - Sélection indicateurs'!C100)","v":""},{"$f":"IF('Étape 2 - Sélection indicateurs'!D100=\"\",\"\",'Étape 2 - Sélection indicateurs'!D100)","v":""},{"$f":"IF('Étape 2 - Sélection indicateurs'!E100=\"\",\"\",'Étape 2 - Sélection indicateurs'!E100)","v":""}]
[null,{"$f":"IF('Étape 2 - Sélection indicateurs'!C101=\"\",\"\",'Étape 2 - Sélection indicateurs'!C101)","v":""},{"$f":"IF('Étape 2 - Sélection indicateurs'!D101=\"\",\"\",'Étape 2 - Sélection indicateurs'!D101)","v":""},{"$f":"IF('Étape 2 - Sélection indicateurs'!E101=\"\",\"\",'Étape 2 - Sélection indicateurs'!E101)","v":""}]
[null,{"$f":"IF('Étape 2 - Sélection indicateurs'!C102=\"\",\"\",'Étape 2 - Sélection indicateurs'!C102)","v":""},{"$f":"IF('Étape 2 - Sélection indicateurs'!D102=\"\",\"\",'Étape 2 - Sélection indicateurs'!D102)","v":""},{"$f":"IF('Étape 2 - Sélection indicateurs'!E102=\"\",\"\",'Étape 2 - Sélection indicateurs'!E102)","v":""}]
[null,{"$f":"IF('Étape 2 - Sélection indicateurs'!C103=\"\",\"\",'Étape 2 - Sélection indicateurs'!C103)","v":""},{"$f":"IF('Étape 2 - Sélection indicateurs'!D103=\"\",\"\",'Étape 2 - Sélection indicateurs'!D103)","v":""},{"$f":"IF('Étape 2 - Sélection indicateurs'!E103=\"\",\"\",'Étape 2 - Sélection indicateurs'!E103)","v":""}]
[null,{"$f":"IF('Étape 2 - Sélection indicateurs'!C104=\"\",\"\",'Étape 2 - Sélection indicateurs'!C104)","v":""},{"$f":"IF('Étape 2 - Sélection indicateurs'!D104=\"\",\"\",'Étape 2 - Sélection indicateurs'!D104)","v":""},{"$f":"IF('Étape 2 - Sélection indicateurs'!E104=\"\",\"\",'Étape 2 - Sélection indicateurs'!E104)","v":""}]
[null,{"$f":"IF('Étape 2 - Sélection indicateurs'!C105=\"\",\"\",'Étape 2 - Sélection indicateurs'!C105)","v":""},{"$f":"IF('Étape 2 - Sélection indicateurs'!D105=\"\",\"\",'Étape 2 - Sélection indicateurs'!D105)","v":""},{"$f":"IF('Étape 2 - Sélection indicateurs'!E105=\"\",\"\",'Étape 2 - Sélection indicateurs'!E105)","v":""}]
[null,{"$f":"IF('Étape 2 - Sélection indicateurs'!C106=\"\",\"\",'Étape 2 - Sélection indicateurs'!C106)","v":""},{"$f":"IF('Étape 2 - Sélection indicateurs'!D106=\"\",\"\",'Étape 2 - Sélection indicateurs'!D106)","v":""},{"$f":"IF('Étape 2 - Sélection indicateurs'!E106=\"\",\"\",'Étape 2 - Sélection indicateurs'!E106)","v":""}]
[null,{"$f":"IF('Étape 2 - Sélection indicateurs'!C107=\"\",\"\",'Étape 2 - Sélection indicateurs'!C107)","v":""},{"$f":"IF('Étape 2 - Sélection indicateurs'!D107=\"\",\"\",'Étape 2 - Sélection indicateurs'!D107)","v":""},{"$f":"IF('Étape 2 - Sélection indicateurs'!E107=\"\",\"\",'Étape 2 - Sélection indicateurs'!E107)","v":""}]
[null,{"$f":"IF('Étape 2 - Sélection indicateurs'!C108=\"\",\"\",'Étape 2 - Sélection indicateurs'!C108)","v":""},{"$f":"IF('Étape 2 - Sélection indicateurs'!D108=\"\",\"\",'Étape 2 - Sélection indicateurs'!D108)","v":""},{"$f":"IF('Étape 2 - Sélection indicateurs'!E108=\"\",\"\",'Étape 2 - Sélection indicateurs'!E108)","v":""}]
[null,{"$f":"IF('Étape 2 - Sélection indicateurs'!C109=\"\",\"\",'Étape 2 - Sélection indicateurs'!C109)","v":""},{"$f":"IF('Étape 2 - Sélection indicateurs'!D109=\"\",\"\",'Étape 2 - Sélection indicateurs'!D109)","v":""},{"$f":"IF('Étape 2 - Sélection indicateurs'!E109=\"\",\"\",'Étape 2 - Sélection indicateurs'!E109)","v":""}]
[null,{"$f":"IF('Étape 2 - Sélection indicateurs'!C110=\"\",\"\",'Étape 2 - Sélection indicateurs'!C110)","v":""},{"$f":"IF('Étape 2 - Sélection indicateurs'!D110=\"\",\"\",'Étape 2 - Sélection indicateurs'!D110)","v":""},{"$f":"IF('Étape 2 - Sélection indicateurs'!E110=\"\",\"\",'Étape 2 - Sélection indicateurs'!E110)","v":""}]
[null,{"$f":"IF('Étape 2 - Sélection indicateurs'!C111=\"\",\"\",'Étape 2 - Sélection indicateurs'!C111)","v":""},{"$f":"IF('Étape 2 - Sélection indicateurs'!D111=\"\",\"\",'Étape 2 - Sélection indicateurs'!D111)","v":""},{"$f":"IF('Étape 2 - Sélection indicateurs'!E111=\"\",\"\",'Étape 2 - Sélection indicateurs'!E111)","v":""}]
[null,{"$f":"IF('Étape 2 - Sélection indicateurs'!C112=\"\",\"\",'Étape 2 - Sélection indicateurs'!C112)","v":""},{"$f":"IF('Étape 2 - Sélection indicateurs'!D112=\"\",\"\",'Étape 2 - Sélection indicateurs'!D112)","v":""},{"$f":"IF('Étape 2 - Sélection indicateurs'!E112=\"\",\"\",'Étape 2 - Sélection indicateurs'!E112)","v":""}]
[null,{"$f":"IF('Étape 2 - Sélection indicateurs'!C113=\"\",\"\",'Étape 2 - Sélection indicateurs'!C113)","v":""},{"$f":"IF('Étape 2 - Sélection indicateurs'!D113=\"\",\"\",'Étape 2 - Sélection indicateurs'!D113)","v":""},{"$f":"IF('Étape 2 - Sélection indicateurs'!E113=\"\",\"\",'Étape 2 - Sélection indicateurs'!E113)","v":""}]
[null,{"$f":"IF('Étape 2 - Sélection indicateurs'!C114=\"\",\"\",'Étape 2 - Sélection indicateurs'!C114)","v":""},{"$f":"IF('Étape 2 - Sélection indicateurs'!D114=\"\",\"\",'Étape 2 - Sélection indicateurs'!D114)","v":""},{"$f":"IF('Étape 2 - Sélection indicateurs'!E114=\"\",\"\",'Étape 2 - Sélection indicateurs'!E114)","v":""}]
[null,{"$f":"IF('Étape 2 - Sélection indicateurs'!C115=\"\",\"\",'Étape 2 - Sélection indicateurs'!C115)","v":""},{"$f":"IF('Étape 2 - Sélection indicateurs'!D115=\"\",\"\",'Étape 2 - Sélection indicateurs'!D115)","v":""},{"$f":"IF('Étape 2 - Sélection indicateurs'!E115=\"\",\"\",'Étape 2 - Sélection indicateurs'!E115)","v":""}]
[null,{"$f":"IF('Étape 2 - Sélection indicateurs'!C116=\"\",\"\",'Étape 2 - Sélection indicateurs'!C116)","v":""},{"$f":"IF('Étape 2 - Sélection indicateurs'!D116=\"\",\"\",'Étape 2 - Sélection indicateurs'!D116)","v":""},{"$f":"IF('Étape 2 - Sélection indicateurs'!E116=\"\",\"\",'Étape 2 - Sélection indicateurs'!E116)","v":""}]
[null,{"$f":"IF('Étape 2 - Sélection indicateurs'!C117=\"\",\"\",'Étape 2 - Sélection indicateurs'!C117)","v":""},{"$f":"IF('Étape 2 - Sélection indicateurs'!D117=\"\",\"\",'Étape 2 - Sélection indicateurs'!D117)","v":""},{"$f":"IF('Étape 2 - Sélection indicateurs'!E117=\"\",\"\",'Étape 2 - Sélection indicateurs'!E117)","v":""}]
[null,{"$f":"IF('Étape 2 - Sélection indicateurs'!C118=\"\",\"\",'Étape 2 - Sélection indicateurs'!C118)","v":""},{"$f":"IF('Étape 2 - Sélection indicateurs'!D118=\"\",\"\",'Étape 2 - Sélection indicateurs'!D118)","v":""},{"$f":"IF('Étape 2 - Sélection indicateurs'!E118=\"\",\"\",'Étape 2 - Sélection indicateurs'!E118)","v":""}]
[null,{"$f":"IF('Étape 2 - Sélection indicateurs'!C119=\"\",\"\",'Étape 2 - Sélection indicateurs'!C119)","v":""},{"$f":"IF('Étape 2 - Sélection indicateurs'!D119=\"\",\"\",'Étape 2 - Sélection indicateurs'!D119)","v":""},{"$f":"IF('Étape 2 - Sélection indicateurs'!E119=\"\",\"\",'Étape 2 - Sélection indicateurs'!E119)","v":""}]
[null,{"$f":"IF('Étape 2 - Sélection indicateurs'!C120=\"\",\"\",'Étape 2 - Sélection indicateurs'!C120)","v":""},{"$f":"IF('Étape 2 - Sélection indicateurs'!D120=\"\",\"\",'Étape 2 - Sélection indicateurs'!D120)","v":""},{"$f":"IF('Étape 2 - Sélection indicateurs'!E120=\"\",\"\",'Étape 2 - Sélection indicateurs'!E120)","v":""}]
[null,{"$f":"IF('Étape 2 - Sélection indicateurs'!C121=\"\",\"\",'Étape 2 - Sélection indicateurs'!C121)","v":""},{"$f":"IF('Étape 2 - Sélection indicateurs'!D121=\"\",\"\",'Étape 2 - Sélection indicateurs'!D121)","v":""},{"$f":"IF('Étape 2 - Sélection indicateurs'!E121=\"\",\"\",'Étape 2 - Sélection indicateurs'!E121)","v":""}]
[null,{"$f":"IF('Étape 2 - Sélection indicateurs'!C122=\"\",\"\",'Étape 2 - Sélection indicateurs'!C122)","v":""},{"$f":"IF('Étape 2 - Sélection indicateurs'!D122=\"\",\"\",'Étape 2 - Sélection indicateurs'!D122)","v":""},{"$f":"IF('Étape 2 - Sélection indicateurs'!E122=\"\",\"\",'Étape 2 - Sélection indicateurs'!E122)","v":""}]
[null,{"$f":"IF('Étape 2 - Sélection indicateurs'!C123=\"\",\"\",'Étape 2 - Sélection indicateurs'!C123)","v":""},{"$f":"IF('Étape 2 - Sélection indicateurs'!D123=\"\",\"\",'Étape 2 - Sélection indicateurs'!D123)","v":""},{"$f":"IF('Étape 2 - Sélection indicateurs'!E123=\"\",\"\",'Étape 2 - Sélection indicateurs'!E123)","v":""}]
[null,{"$f":"IF('Étape 2 - Sélection indicateurs'!C124=\"\",\"\",'Étape 2 - Sélection indicateurs'!C124)","v":""},{"$f":"IF('Étape 2 - Sélection indicateurs'!D124=\"\",\"\",'Étape 2 - Sélection indicateurs'!D124)","v":""},{"$f":"IF('Étape 2 - Sélection indicateurs'!E124=\"\",\"\",'Étape 2 - Sélection indicateurs'!E124)","v":""}]

{"sheet":"Step 4 - Set Thresholds","index":4,"n_rows":120,"n_cols":7,"rows_kept":120,"cut":false,"hidden":false,"merged":[]}
[]
[null,{"$f":"CONCATENATE('Step 0 - Configuration'!C3,\": \",'Step 0 - Configuration'!C6)","v":"NOM DU PAYS: NOM DE LA CARTE DE SCORE"}]
[null,"Étape 4: Seuils"]
[]
[]
[null,"Nom de l'indicateur","Catégorie","National / Sous-national","Seuil rouge","Seuil jaune ","Seuil vert "]
[null,{"$f":"IF('Étape 2 - Sélection indicateurs'!C11=\"\",\"\",'Étape 2 - Sélection indicateurs'!C11)","v":"% des enfants de 6–59 mois qui ont une infection palustre (par microscopie)"},{"$f":"IF('Étape 2 - Sélection indicateurs'!D11=\"\",\"\",'Étape 2 - Sélection indicateurs'!D11)","v":""},{"$f":"IF('Étape 2 - Sélection indicateurs'!E11=\"\",\"\",'Étape 2 - Sélection indicateurs'!E11)","v":"National"}]
[null,{"$f":"IF('Étape 2 - Sélection indicateurs'!C12=\"\",\"\",'Étape 2 - Sélection indicateurs'!C12)","v":"% de la population des ménages qui a dormi sous une MILDA la nuit précédente"},{"$f":"IF('Étape 2 - Sélection indicateurs'!D12=\"\",\"\",'Étape 2 - Sélection indicateurs'!D12)","v":""},{"$f":"IF('Étape 2 - Sélection indicateurs'!E12=\"\",\"\",'Étape 2 - Sélection indicateurs'!E12)","v":"National"}]
[null,{"$f":"IF('Étape 2 - Sélection indicateurs'!C13=\"\",\"\",'Étape 2 - Sélection indicateurs'!C13)","v":"Proportion des menages ayant l'acces universel aux MILDA (1 MILDA pour 2 personnes)"},{"$f":"IF('Étape 2 - Sélection indicateurs'!D13=\"\",\"\",'Étape 2 - Sélection indicateurs'!D13)","v":""},{"$f":"IF('Étape 2 - Sélection indicateurs'!E13=\"\",\"\",'Étape 2 - Sélection indicateurs'!E13)","v":"National"}]
[null,{"$f":"IF('Étape 2 - Sélection indicateurs'!C14=\"\",\"\",'Étape 2 - Sélection indicateurs'!C14)","v":"% d’enfants de moins de 5 ans avec une fièvre au cours des 15 dernier jours qui ont subi une piqûre au doigt ou au talon pour le diagnostic du paludisme"},{"$f":"IF('Étape 2 - Sélection indicateurs'!D14=\"\",\"\",'Étape 2 - Sélection indicateurs'!D14)","v":""},{"$f":"IF('Étape 2 - Sélection indicateurs'!E14=\"\",\"\",'Étape 2 - Sélection indicateurs'!E14)","v":"National"}]
[null,{"$f":"IF('Étape 2 - Sélection indicateurs'!C15=\"\",\"\",'Étape 2 - Sélection indicateurs'!C15)","v":"% de personnes qui sont capables de reconnaître au moins un symptome du paludisme"},{"$f":"IF('Étape 2 - Sélection indicateurs'!D15=\"\",\"\",'Étape 2 - Sélection indicateurs'!D15)","v":""},{"$f":"IF('Étape 2 - Sélection indicateurs'!E15=\"\",\"\",'Étape 2 - Sélection indicateurs'!E15)","v":"National"}]
[null,{"$f":"IF('Étape 2 - Sélection indicateurs'!C16=\"\",\"\",'Étape 2 - Sélection indicateurs'!C16)","v":"% de personnes qui sont capables de reconnaître le moyen de transmission du paludisme"},{"$f":"IF('Étape 2 - Sélection indicateurs'!D16=\"\",\"\",'Étape 2 - Sélection indicateurs'!D16)","v":""},{"$f":"IF('Étape 2 - Sélection indicateurs'!E16=\"\",\"\",'Étape 2 - Sélection indicateurs'!E16)","v":"National"}]
[null,{"$f":"IF('Étape 2 - Sélection indicateurs'!C17=\"\",\"\",'Étape 2 - Sélection indicateurs'!C17)","v":"Le taux d'execution des activites planifies dans le plan d'action annuel du PNLP"},{"$f":"IF('Étape 2 - Sélection indicateurs'!D17=\"\",\"\",'Étape 2 - Sélection indicateurs'!D17)","v":""},{"$f":"IF('Étape 2 - Sélection indicateurs'!E17=\"\",\"\",'Étape 2 - Sélection indicateurs'!E17)","v":"National"}]
[null,{"$f":"IF('Étape 2 - Sélection indicateurs'!C18=\"\",\"\",'Étape 2 - Sélection indicateurs'!C18)","v":"Proportion de la contribution du gouvernement dans le financement de la lutte contre le paludisme"},{"$f":"IF('Étape 2 - Sélection indicateurs'!D18=\"\",\"\",'Étape 2 - Sélection indicateurs'!D18)","v":""},{"$f":"IF('Étape 2 - Sélection indicateurs'!E18=\"\",\"\",'Étape 2 - Sélection indicateurs'!E18)","v":"National"}]
[null,{"$f":"IF('Étape 2 - Sélection indicateurs'!C19=\"\",\"\",'Étape 2 - Sélection indicateurs'!C19)","v":"Cas confirmés de paludisme pour 1 000 habitants"},{"$f":"IF('Étape 2 - Sélection indicateurs'!D19=\"\",\"\",'Étape 2 - Sélection indicateurs'!D19)","v":""},{"$f":"IF('Étape 2 - Sélection indicateurs'!E19=\"\",\"\",'Étape 2 - Sélection indicateurs'!E19)","v":"Sous-national"}]
[null,{"$f":"IF('Étape 2 - Sélection indicateurs'!C20=\"\",\"\",'Étape 2 - Sélection indicateurs'!C20)","v":"Décès hospitaliers imputables au paludisme pour 100 000 habitants"},{"$f":"IF('Étape 2 - Sélection indicateurs'!D20=\"\",\"\",'Étape 2 - Sélection indicateurs'!D20)","v":""},{"$f":"IF('Étape 2 - Sélection indicateurs'!E20=\"\",\"\",'Étape 2 - Sélection indicateurs'!E20)","v":"Sous-national"}]
[null,{"$f":"IF('Étape 2 - Sélection indicateurs'!C21=\"\",\"\",'Étape 2 - Sélection indicateurs'!C21)","v":"% de menages situees dans zones ciblees par la PID ayant beneficie de la pulvérisations intradomiciliaires à effet rémanent au cours des 12 derniers mois"},{"$f":"IF('Étape 2 - Sélection indicateurs'!D21=\"\",\"\",'Étape 2 - Sélection indicateurs'!D21)","v":""},{"$f":"IF('Étape 2 - Sélection indicateurs'!E21=\"\",\"\",'Étape 2 - Sélection indicateurs'!E21)","v":"Sous-national"}]
[null,{"$f":"IF('Étape 2 - Sélection indicateurs'!C22=\"\",\"\",'Étape 2 - Sélection indicateurs'!C22)","v":"% des femmes enceintes ayant reçu un TPI avec au moins 3 dose de SP lors de CPN"},{"$f":"IF('Étape 2 - Sélection indicateurs'!D22=\"\",\"\",'Étape 2 - Sélection indicateurs'!D22)","v":""},{"$f":"IF('Étape 2 - Sélection indicateurs'!E22=\"\",\"\",'Étape 2 - Sélection indicateurs'!E22)","v":"Sous-national"}]
[null,{"$f":"IF('Étape 2 - Sélection indicateurs'!C23=\"\",\"\",'Étape 2 - Sélection indicateurs'!C23)","v":"Proportion d’enfants ayant reçu une MILDA lors des CPS"},{"$f":"IF('Étape 2 - Sélection indicateurs'!D23=\"\",\"\",'Étape 2 - Sélection indicateurs'!D23)","v":""},{"$f":"IF('Étape 2 - Sélection indicateurs'!E23=\"\",\"\",'Étape 2 - Sélection indicateurs'!E23)","v":"Sous-national"}]
[null,{"$f":"IF('Étape 2 - Sélection indicateurs'!C24=\"\",\"\",'Étape 2 - Sélection indicateurs'!C24)","v":"Proportion des femmes enceintes ayant reçu une MILDA lors des CPN"},{"$f":"IF('Étape 2 - Sélection indicateurs'!D24=\"\",\"\",'Étape 2 - Sélection indicateurs'!D24)","v":""},{"$f":"IF('Étape 2 - Sélection indicateurs'!E24=\"\",\"\",'Étape 2 - Sélection indicateurs'!E24)","v":"Sous-national"}]
[null,{"$f":"IF('Étape 2 - Sélection indicateurs'!C25=\"\",\"\",'Étape 2 - Sélection indicateurs'!C25)","v":"Proportion de MILDA distribuées lors des campagnes de distribution de masse par rapport a la population ciblee"},{"$f":"IF('Étape 2 - Sélection indicateurs'!D25=\"\",\"\",'Étape 2 - Sélection indicateurs'!D25)","v":""},{"$f":"IF('Étape 2 - Sélection indicateurs'!E25=\"\",\"\",'Étape 2 - Sélection indicateurs'!E25)","v":"Sous-national"}]
[null,{"$f":"IF('Étape 2 - Sélection indicateurs'!C26=\"\",\"\",'Étape 2 - Sélection indicateurs'!C26)","v":"Proportion des enfants de moins de 5 ans testés positifs au TDR et traités avec les CTA au niveau communautaire, conformément aux directives nationales"},{"$f":"IF('Étape 2 - Sélection indicateurs'!D26=\"\",\"\",'Étape 2 - Sélection indicateurs'!D26)","v":""},{"$f":"IF('Étape 2 - Sélection indicateurs'!E26=\"\",\"\",'Étape 2 - Sélection indicateurs'!E26)","v":"Sous-national"}]
[null,{"$f":"IF('Étape 2 - Sélection indicateurs'!C27=\"\",\"\",'Étape 2 - Sélection indicateurs'!C27)","v":"% d’enfants < 5 ans ayant bénéficié d’une confirmation biologique du paludisme et qui ont reçu un traitement conformément à la politique nationale"},{"$f":"IF('Étape 2 - Sélection indicateurs'!D27=\"\",\"\",'Étape 2 - Sélection indicateurs'!D27)","v":""},{"$f":"IF('Étape 2 - Sélection indicateurs'!E27=\"\",\"\",'Étape 2 - Sélection indicateurs'!E27)","v":"Sous-national"}]
[null,{"$f":"IF('Étape 2 - Sélection indicateurs'!C28=\"\",\"\",'Étape 2 - Sélection indicateurs'!C28)","v":"% de structures sanitaires sans ruptures de stocks des CTA (2-11 mois) dans les 3 mois"},{"$f":"IF('Étape 2 - Sélection indicateurs'!D28=\"\",\"\",'Étape 2 - Sélection indicateurs'!D28)","v":""},{"$f":"IF('Étape 2 - Sélection indicateurs'!E28=\"\",\"\",'Étape 2 - Sélection indicateurs'!E28)","v":"Sous-national"}]
[null,{"$f":"IF('Étape 2 - Sélection indicateurs'!C29=\"\",\"\",'Étape 2 - Sélection indicateurs'!C29)","v":"% de structures sanitaires sans ruptures de stocks des TDR dans les 3 mois"},{"$f":"IF('Étape 2 - Sélection indicateurs'!D29=\"\",\"\",'Étape 2 - Sélection indicateurs'!D29)","v":""},{"$f":"IF('Étape 2 - Sélection indicateurs'!E29=\"\",\"\",'Étape 2 - Sélection indicateurs'!E29)","v":"Sous-national"}]
[null,{"$f":"IF('Étape 2 - Sélection indicateurs'!C30=\"\",\"\",'Étape 2 - Sélection indicateurs'!C30)","v":"% de structures sanitaires sans ruptures de stocks des SP dans les 3 mois"},{"$f":"IF('Étape 2 - Sélection indicateurs'!D30=\"\",\"\",'Étape 2 - Sélection indicateurs'!D30)","v":""},{"$f":"IF('Étape 2 - Sélection indicateurs'!E30=\"\",\"\",'Étape 2 - Sélection indicateurs'!E30)","v":"Sous-national"}]
[null,{"$f":"IF('Étape 2 - Sélection indicateurs'!C31=\"\",\"\",'Étape 2 - Sélection indicateurs'!C31)","v":"Taux de létalité hospitalière du paludisme (à tous les âges)"},{"$f":"IF('Étape 2 - Sélection indicateurs'!D31=\"\",\"\",'Étape 2 - Sélection indicateurs'!D31)","v":""},{"$f":"IF('Étape 2 - Sélection indicateurs'!E31=\"\",\"\",'Étape 2 - Sélection indicateurs'!E31)","v":"Sous-national"}]
[null,{"$f":"IF('Étape 2 - Sélection indicateurs'!C32=\"\",\"\",'Étape 2 - Sélection indicateurs'!C32)","v":"Taux de létalité hospitalière du paludisme chez les enfants de moins de 5 ans"},{"$f":"IF('Étape 2 - Sélection indicateurs'!D32=\"\",\"\",'Étape 2 - Sélection indicateurs'!D32)","v":""},{"$f":"IF('Étape 2 - Sélection indicateurs'!E32=\"\",\"\",'Étape 2 - Sélection indicateurs'!E32)","v":"Sous-national"}]
[null,{"$f":"IF('Étape 2 - Sélection indicateurs'!C33=\"\",\"\",'Étape 2 - Sélection indicateurs'!C33)","v":"Taux de complétude des rapports de donnes [par FOSA]"},{"$f":"IF('Étape 2 - Sélection indicateurs'!D33=\"\",\"\",'Étape 2 - Sélection indicateurs'!D33)","v":""},{"$f":"IF('Étape 2 - Sélection indicateurs'!E33=\"\",\"\",'Étape 2 - Sélection indicateurs'!E33)","v":"Sous-national"}]
[null,{"$f":"IF('Étape 2 - Sélection indicateurs'!C34=\"\",\"\",'Étape 2 - Sélection indicateurs'!C34)","v":"Proportion des rapports complets transmis dans les délais"},{"$f":"IF('Étape 2 - Sélection indicateurs'!D34=\"\",\"\",'Étape 2 - Sélection indicateurs'!D34)","v":""},{"$f":"IF('Étape 2 - Sélection indicateurs'!E34=\"\",\"\",'Étape 2 - Sélection indicateurs'!E34)","v":"Sous-national"}]
[null,{"$f":"IF('Étape 2 - Sélection indicateurs'!C35=\"\",\"\",'Étape 2 - Sélection indicateurs'!C35)","v":"Proportion des sites sentinelles ayant soumis leurs rapports mensuels dans les délais"},{"$f":"IF('Étape 2 - Sélection indicateurs'!D35=\"\",\"\",'Étape 2 - Sélection indicateurs'!D35)","v":""},{"$f":"IF('Étape 2 - Sélection indicateurs'!E35=\"\",\"\",'Étape 2 - Sélection indicateurs'!E35)","v":"Sous-national"}]
[null,{"$f":"IF('Étape 2 - Sélection indicateurs'!C36=\"\",\"\",'Étape 2 - Sélection indicateurs'!C36)","v":"% d'épidémies du paludisme ayant fait l'objet de détection et de riposte dans les 15 jours "},{"$f":"IF('Étape 2 - Sélection indicateurs'!D36=\"\",\"\",'Étape 2 - Sélection indicateurs'!D36)","v":""},{"$f":"IF('Étape 2 - Sélection indicateurs'!E36=\"\",\"\",'Étape 2 - Sélection indicateurs'!E36)","v":"Sous-national"}]
[null,{"$f":"IF('Étape 2 - Sélection indicateurs'!C37=\"\",\"\",'Étape 2 - Sélection indicateurs'!C37)","v":"% des femmes enceintes qui ont bénéficié de SP3 conformément à la politique nationale"},{"$f":"IF('Étape 2 - Sélection indicateurs'!D37=\"\",\"\",'Étape 2 - Sélection indicateurs'!D37)","v":""},{"$f":"IF('Étape 2 - Sélection indicateurs'!E37=\"\",\"\",'Étape 2 - Sélection indicateurs'!E37)","v":""}]
[null,{"$f":"IF('Étape 2 - Sélection indicateurs'!C38=\"\",\"\",'Étape 2 - Sélection indicateurs'!C38)","v":"% d’épidémies de paludisme ayant fait l’objet de détection précoce et de riposte dans les 15 jours"},{"$f":"IF('Étape 2 - Sélection indicateurs'!D38=\"\",\"\",'Étape 2 - Sélection indicateurs'!D38)","v":""},{"$f":"IF('Étape 2 - Sélection indicateurs'!E38=\"\",\"\",'Étape 2 - Sélection indicateurs'!E38)","v":""}]
[null,{"$f":"IF('Étape 2 - Sélection indicateurs'!C39=\"\",\"\",'Étape 2 - Sélection indicateurs'!C39)","v":"% des gîtes larvaires traités"},{"$f":"IF('Étape 2 - Sélection indicateurs'!D39=\"\",\"\",'Étape 2 - Sélection indicateurs'!D39)","v":""},{"$f":"IF('Étape 2 - Sélection indicateurs'!E39=\"\",\"\",'Étape 2 - Sélection indicateurs'!E39)","v":""}]
[null,{"$f":"IF('Étape 2 - Sélection indicateurs'!C40=\"\",\"\",'Étape 2 - Sélection indicateurs'!C40)","v":"Proportion de MILDA distribuées à travers des écoles et les OAC par rapport au MILDA planifier a ete distribue"},{"$f":"IF('Étape 2 - Sélection indicateurs'!D40=\"\",\"\",'Étape 2 - Sélection indicateurs'!D40)","v":""},{"$f":"IF('Étape 2 - Sélection indicateurs'!E40=\"\",\"\",'Étape 2 - Sélection indicateurs'!E40)","v":""}]
[null,{"$f":"IF('Étape 2 - Sélection indicateurs'!C41=\"\",\"\",'Étape 2 - Sélection indicateurs'!C41)","v":"Proportion d’établissements de santé ayant une concordance des données ≥ 80% au cours des RDQA"},{"$f":"IF('Étape 2 - Sélection indicateurs'!D41=\"\",\"\",'Étape 2 - Sélection indicateurs'!D41)","v":""},{"$f":"IF('Étape 2 - Sélection indicateurs'!E41=\"\",\"\",'Étape 2 - Sélection indicateurs'!E41)","v":""}]
[null,{"$f":"IF('Étape 2 - Sélection indicateurs'!C42=\"\",\"\",'Étape 2 - Sélection indicateurs'!C42)","v":""},{"$f":"IF('Étape 2 - Sélection indicateurs'!D42=\"\",\"\",'Étape 2 - Sélection indicateurs'!D42)","v":""},{"$f":"IF('Étape 2 - Sélection indicateurs'!E42=\"\",\"\",'Étape 2 - Sélection indicateurs'!E42)","v":""}]
[null,{"$f":"IF('Étape 2 - Sélection indicateurs'!C43=\"\",\"\",'Étape 2 - Sélection indicateurs'!C43)","v":""},{"$f":"IF('Étape 2 - Sélection indicateurs'!D43=\"\",\"\",'Étape 2 - Sélection indicateurs'!D43)","v":""},{"$f":"IF('Étape 2 - Sélection indicateurs'!E43=\"\",\"\",'Étape 2 - Sélection indicateurs'!E43)","v":""}]
[null,{"$f":"IF('Étape 2 - Sélection indicateurs'!C44=\"\",\"\",'Étape 2 - Sélection indicateurs'!C44)","v":""},{"$f":"IF('Étape 2 - Sélection indicateurs'!D44=\"\",\"\",'Étape 2 - Sélection indicateurs'!D44)","v":""},{"$f":"IF('Étape 2 - Sélection indicateurs'!E44=\"\",\"\",'Étape 2 - Sélection indicateurs'!E44)","v":""}]
[null,{"$f":"IF('Étape 2 - Sélection indicateurs'!C45=\"\",\"\",'Étape 2 - Sélection indicateurs'!C45)","v":""},{"$f":"IF('Étape 2 - Sélection indicateurs'!D45=\"\",\"\",'Étape 2 - Sélection indicateurs'!D45)","v":""},{"$f":"IF('Étape 2 - Sélection indicateurs'!E45=\"\",\"\",'Étape 2 - Sélection indicateurs'!E45)","v":""}]
[null,{"$f":"IF('Étape 2 - Sélection indicateurs'!C46=\"\",\"\",'Étape 2 - Sélection indicateurs'!C46)","v":""},{"$f":"IF('Étape 2 - Sélection indicateurs'!D46=\"\",\"\",'Étape 2 - Sélection indicateurs'!D46)","v":""},{"$f":"IF('Étape 2 - Sélection indicateurs'!E46=\"\",\"\",'Étape 2 - Sélection indicateurs'!E46)","v":""}]
[null,{"$f":"IF('Étape 2 - Sélection indicateurs'!C47=\"\",\"\",'Étape 2 - Sélection indicateurs'!C47)","v":""},{"$f":"IF('Étape 2 - Sélection indicateurs'!D47=\"\",\"\",'Étape 2 - Sélection indicateurs'!D47)","v":""},{"$f":"IF('Étape 2 - Sélection indicateurs'!E47=\"\",\"\",'Étape 2 - Sélection indicateurs'!E47)","v":""}]
[null,{"$f":"IF('Étape 2 - Sélection indicateurs'!C48=\"\",\"\",'Étape 2 - Sélection indicateurs'!C48)","v":""},{"$f":"IF('Étape 2 - Sélection indicateurs'!D48=\"\",\"\",'Étape 2 - Sélection indicateurs'!D48)","v":""},{"$f":"IF('Étape 2 - Sélection indicateurs'!E48=\"\",\"\",'Étape 2 - Sélection indicateurs'!E48)","v":""}]
[null,{"$f":"IF('Étape 2 - Sélection indicateurs'!C49=\"\",\"\",'Étape 2 - Sélection indicateurs'!C49)","v":""},{"$f":"IF('Étape 2 - Sélection indicateurs'!D49=\"\",\"\",'Étape 2 - Sélection indicateurs'!D49)","v":""},{"$f":"IF('Étape 2 - Sélection indicateurs'!E49=\"\",\"\",'Étape 2 - Sélection indicateurs'!E49)","v":""}]
[null,{"$f":"IF('Étape 2 - Sélection indicateurs'!C50=\"\",\"\",'Étape 2 - Sélection indicateurs'!C50)","v":""},{"$f":"IF('Étape 2 - Sélection indicateurs'!D50=\"\",\"\",'Étape 2 - Sélection indicateurs'!D50)","v":""},{"$f":"IF('Étape 2 - Sélection indicateurs'!E50=\"\",\"\",'Étape 2 - Sélection indicateurs'!E50)","v":""}]
[null,{"$f":"IF('Étape 2 - Sélection indicateurs'!C51=\"\",\"\",'Étape 2 - Sélection indicateurs'!C51)","v":""},{"$f":"IF('Étape 2 - Sélection indicateurs'!D51=\"\",\"\",'Étape 2 - Sélection indicateurs'!D51)","v":""},{"$f":"IF('Étape 2 - Sélection indicateurs'!E51=\"\",\"\",'Étape 2 - Sélection indicateurs'!E51)","v":""}]
[null,{"$f":"IF('Étape 2 - Sélection indicateurs'!C52=\"\",\"\",'Étape 2 - Sélection indicateurs'!C52)","v":""},{"$f":"IF('Étape 2 - Sélection indicateurs'!D52=\"\",\"\",'Étape 2 - Sélection indicateurs'!D52)","v":""},{"$f":"IF('Étape 2 - Sélection indicateurs'!E52=\"\",\"\",'Étape 2 - Sélection indicateurs'!E52)","v":""}]
[null,{"$f":"IF('Étape 2 - Sélection indicateurs'!C53=\"\",\"\",'Étape 2 - Sélection indicateurs'!C53)","v":""},{"$f":"IF('Étape 2 - Sélection indicateurs'!D53=\"\",\"\",'Étape 2 - Sélection indicateurs'!D53)","v":""},{"$f":"IF('Étape 2 - Sélection indicateurs'!E53=\"\",\"\",'Étape 2 - Sélection indicateurs'!E53)","v":""}]
[null,{"$f":"IF('Étape 2 - Sélection indicateurs'!C54=\"\",\"\",'Étape 2 - Sélection indicateurs'!C54)","v":""},{"$f":"IF('Étape 2 - Sélection indicateurs'!D54=\"\",\"\",'Étape 2 - Sélection indicateurs'!D54)","v":""},{"$f":"IF('Étape 2 - Sélection indicateurs'!E54=\"\",\"\",'Étape 2 - Sélection indicateurs'!E54)","v":""}]
[null,{"$f":"IF('Étape 2 - Sélection indicateurs'!C55=\"\",\"\",'Étape 2 - Sélection indicateurs'!C55)","v":""},{"$f":"IF('Étape 2 - Sélection indicateurs'!D55=\"\",\"\",'Étape 2 - Sélection indicateurs'!D55)","v":""},{"$f":"IF('Étape 2 - Sélection indicateurs'!E55=\"\",\"\",'Étape 2 - Sélection indicateurs'!E55)","v":""}]
[null,{"$f":"IF('Étape 2 - Sélection indicateurs'!C56=\"\",\"\",'Étape 2 - Sélection indicateurs'!C56)","v":""},{"$f":"IF('Étape 2 - Sélection indicateurs'!D56=\"\",\"\",'Étape 2 - Sélection indicateurs'!D56)","v":""},{"$f":"IF('Étape 2 - Sélection indicateurs'!E56=\"\",\"\",'Étape 2 - Sélection indicateurs'!E56)","v":""}]
[null,{"$f":"IF('Étape 2 - Sélection indicateurs'!C57=\"\",\"\",'Étape 2 - Sélection indicateurs'!C57)","v":""},{"$f":"IF('Étape 2 - Sélection indicateurs'!D57=\"\",\"\",'Étape 2 - Sélection indicateurs'!D57)","v":""},{"$f":"IF('Étape 2 - Sélection indicateurs'!E57=\"\",\"\",'Étape 2 - Sélection indicateurs'!E57)","v":""}]
[null,{"$f":"IF('Étape 2 - Sélection indicateurs'!C58=\"\",\"\",'Étape 2 - Sélection indicateurs'!C58)","v":""},{"$f":"IF('Étape 2 - Sélection indicateurs'!D58=\"\",\"\",'Étape 2 - Sélection indicateurs'!D58)","v":""},{"$f":"IF('Étape 2 - Sélection indicateurs'!E58=\"\",\"\",'Étape 2 - Sélection indicateurs'!E58)","v":""}]
[null,{"$f":"IF('Étape 2 - Sélection indicateurs'!C59=\"\",\"\",'Étape 2 - Sélection indicateurs'!C59)","v":""},{"$f":"IF('Étape 2 - Sélection indicateurs'!D59=\"\",\"\",'Étape 2 - Sélection indicateurs'!D59)","v":""},{"$f":"IF('Étape 2 - Sélection indicateurs'!E59=\"\",\"\",'Étape 2 - Sélection indicateurs'!E59)","v":""}]
[null,{"$f":"IF('Étape 2 - Sélection indicateurs'!C60=\"\",\"\",'Étape 2 - Sélection indicateurs'!C60)","v":""},{"$f":"IF('Étape 2 - Sélection indicateurs'!D60=\"\",\"\",'Étape 2 - Sélection indicateurs'!D60)","v":""},{"$f":"IF('Étape 2 - Sélection indicateurs'!E60=\"\",\"\",'Étape 2 - Sélection indicateurs'!E60)","v":""}]
[null,{"$f":"IF('Étape 2 - Sélection indicateurs'!C61=\"\",\"\",'Étape 2 - Sélection indicateurs'!C61)","v":""},{"$f":"IF('Étape 2 - Sélection indicateurs'!D61=\"\",\"\",'Étape 2 - Sélection indicateurs'!D61)","v":""},{"$f":"IF('Étape 2 - Sélection indicateurs'!E61=\"\",\"\",'Étape 2 - Sélection indicateurs'!E61)","v":""}]
[null,{"$f":"IF('Étape 2 - Sélection indicateurs'!C62=\"\",\"\",'Étape 2 - Sélection indicateurs'!C62)","v":""},{"$f":"IF('Étape 2 - Sélection indicateurs'!D62=\"\",\"\",'Étape 2 - Sélection indicateurs'!D62)","v":""},{"$f":"IF('Étape 2 - Sélection indicateurs'!E62=\"\",\"\",'Étape 2 - Sélection indicateurs'!E62)","v":""}]
[null,{"$f":"IF('Étape 2 - Sélection indicateurs'!C63=\"\",\"\",'Étape 2 - Sélection indicateurs'!C63)","v":""},{"$f":"IF('Étape 2 - Sélection indicateurs'!D63=\"\",\"\",'Étape 2 - Sélection indicateurs'!D63)","v":""},{"$f":"IF('Étape 2 - Sélection indicateurs'!E63=\"\",\"\",'Étape 2 - Sélection indicateurs'!E63)","v":""}]
[null,{"$f":"IF('Étape 2 - Sélection indicateurs'!C64=\"\",\"\",'Étape 2 - Sélection indicateurs'!C64)","v":""},{"$f":"IF('Étape 2 - Sélection indicateurs'!D64=\"\",\"\",'Étape 2 - Sélection indicateurs'!D64)","v":""},{"$f":"IF('Étape 2 - Sélection indicateurs'!E64=\"\",\"\",'Étape 2 - Sélection indicateurs'!E64)","v":""}]
[null,{"$f":"IF('Étape 2 - Sélection indicateurs'!C65=\"\",\"\",'Étape 2 - Sélection indicateurs'!C65)","v":""},{"$f":"IF('Étape 2 - Sélection indicateurs'!D65=\"\",\"\",'Étape 2 - Sélection indicateurs'!D65)","v":""},{"$f":"IF('Étape 2 - Sélection indicateurs'!E65=\"\",\"\",'Étape 2 - Sélection indicateurs'!E65)","v":""}]
[null,{"$f":"IF('Étape 2 - Sélection indicateurs'!C66=\"\",\"\",'Étape 2 - Sélection indicateurs'!C66)","v":""},{"$f":"IF('Étape 2 - Sélection indicateurs'!D66=\"\",\"\",'Étape 2 - Sélection indicateurs'!D66)","v":""},{"$f":"IF('Étape 2 - Sélection indicateurs'!E66=\"\",\"\",'Étape 2 - Sélection indicateurs'!E66)","v":""}]
[null,{"$f":"IF('Étape 2 - Sélection indicateurs'!C67=\"\",\"\",'Étape 2 - Sélection indicateurs'!C67)","v":""},{"$f":"IF('Étape 2 - Sélection indicateurs'!D67=\"\",\"\",'Étape 2 - Sélection indicateurs'!D67)","v":""},{"$f":"IF('Étape 2 - Sélection indicateurs'!E67=\"\",\"\",'Étape 2 - Sélection indicateurs'!E67)","v":""}]
[null,{"$f":"IF('Étape 2 - Sélection indicateurs'!C68=\"\",\"\",'Étape 2 - Sélection indicateurs'!C68)","v":""},{"$f":"IF('Étape 2 - Sélection indicateurs'!D68=\"\",\"\",'Étape 2 - Sélection indicateurs'!D68)","v":""},{"$f":"IF('Étape 2 - Sélection indicateurs'!E68=\"\",\"\",'Étape 2 - Sélection indicateurs'!E68)","v":""}]
[null,{"$f":"IF('Étape 2 - Sélection indicateurs'!C69=\"\",\"\",'Étape 2 - Sélection indicateurs'!C69)","v":""},{"$f":"IF('Étape 2 - Sélection indicateurs'!D69=\"\",\"\",'Étape 2 - Sélection indicateurs'!D69)","v":""},{"$f":"IF('Étape 2 - Sélection indicateurs'!E69=\"\",\"\",'Étape 2 - Sélection indicateurs'!E69)","v":""}]
[null,{"$f":"IF('Étape 2 - Sélection indicateurs'!C70=\"\",\"\",'Étape 2 - Sélection indicateurs'!C70)","v":""},{"$f":"IF('Étape 2 - Sélection indicateurs'!D70=\"\",\"\",'Étape 2 - Sélection indicateurs'!D70)","v":""},{"$f":"IF('Étape 2 - Sélection indicateurs'!E70=\"\",\"\",'Étape 2 - Sélection indicateurs'!E70)","v":""}]
[null,{"$f":"IF('Étape 2 - Sélection indicateurs'!C71=\"\",\"\",'Étape 2 - Sélection indicateurs'!C71)","v":""},{"$f":"IF('Étape 2 - Sélection indicateurs'!D71=\"\",\"\",'Étape 2 - Sélection indicateurs'!D71)","v":""},{"$f":"IF('Étape 2 - Sélection indicateurs'!E71=\"\",\"\",'Étape 2 - Sélection indicateurs'!E71)","v":""}]
[null,{"$f":"IF('Étape 2 - Sélection indicateurs'!C72=\"\",\"\",'Étape 2 - Sélection indicateurs'!C72)","v":""},{"$f":"IF('Étape 2 - Sélection indicateurs'!D72=\"\",\"\",'Étape 2 - Sélection indicateurs'!D72)","v":""},{"$f":"IF('Étape 2 - Sélection indicateurs'!E72=\"\",\"\",'Étape 2 - Sélection indicateurs'!E72)","v":""}]
[null,{"$f":"IF('Étape 2 - Sélection indicateurs'!C73=\"\",\"\",'Étape 2 - Sélection indicateurs'!C73)","v":""},{"$f":"IF('Étape 2 - Sélection indicateurs'!D73=\"\",\"\",'Étape 2 - Sélection indicateurs'!D73)","v":""},{"$f":"IF('Étape 2 - Sélection indicateurs'!E73=\"\",\"\",'Étape 2 - Sélection indicateurs'!E73)","v":""}]
[null,{"$f":"IF('Étape 2 - Sélection indicateurs'!C74=\"\",\"\",'Étape 2 - Sélection indicateurs'!C74)","v":""},{"$f":"IF('Étape 2 - Sélection indicateurs'!D74=\"\",\"\",'Étape 2 - Sélection indicateurs'!D74)","v":""},{"$f":"IF('Étape 2 - Sélection indicateurs'!E74=\"\",\"\",'Étape 2 - Sélection indicateurs'!E74)","v":""}]
[null,{"$f":"IF('Étape 2 - Sélection indicateurs'!C75=\"\",\"\",'Étape 2 - Sélection indicateurs'!C75)","v":""},{"$f":"IF('Étape 2 - Sélection indicateurs'!D75=\"\",\"\",'Étape 2 - Sélection indicateurs'!D75)","v":""},{"$f":"IF('Étape 2 - Sélection indicateurs'!E75=\"\",\"\",'Étape 2 - Sélection indicateurs'!E75)","v":""}]
[null,{"$f":"IF('Étape 2 - Sélection indicateurs'!C76=\"\",\"\",'Étape 2 - Sélection indicateurs'!C76)","v":""},{"$f":"IF('Étape 2 - Sélection indicateurs'!D76=\"\",\"\",'Étape 2 - Sélection indicateurs'!D76)","v":""},{"$f":"IF('Étape 2 - Sélection indicateurs'!E76=\"\",\"\",'Étape 2 - Sélection indicateurs'!E76)","v":""}]
[null,{"$f":"IF('Étape 2 - Sélection indicateurs'!C77=\"\",\"\",'Étape 2 - Sélection indicateurs'!C77)","v":""},{"$f":"IF('Étape 2 - Sélection indicateurs'!D77=\"\",\"\",'Étape 2 - Sélection indicateurs'!D77)","v":""},{"$f":"IF('Étape 2 - Sélection indicateurs'!E77=\"\",\"\",'Étape 2 - Sélection indicateurs'!E77)","v":""}]
[null,{"$f":"IF('Étape 2 - Sélection indicateurs'!C78=\"\",\"\",'Étape 2 - Sélection indicateurs'!C78)","v":""},{"$f":"IF('Étape 2 - Sélection indicateurs'!D78=\"\",\"\",'Étape 2 - Sélection indicateurs'!D78)","v":""},{"$f":"IF('Étape 2 - Sélection indicateurs'!E78=\"\",\"\",'Étape 2 - Sélection indicateurs'!E78)","v":""}]
[null,{"$f":"IF('Étape 2 - Sélection indicateurs'!C79=\"\",\"\",'Étape 2 - Sélection indicateurs'!C79)","v":""},{"$f":"IF('Étape 2 - Sélection indicateurs'!D79=\"\",\"\",'Étape 2 - Sélection indicateurs'!D79)","v":""},{"$f":"IF('Étape 2 - Sélection indicateurs'!E79=\"\",\"\",'Étape 2 - Sélection indicateurs'!E79)","v":""}]
[null,{"$f":"IF('Étape 2 - Sélection indicateurs'!C80=\"\",\"\",'Étape 2 - Sélection indicateurs'!C80)","v":""},{"$f":"IF('Étape 2 - Sélection indicateurs'!D80=\"\",\"\",'Étape 2 - Sélection indicateurs'!D80)","v":""},{"$f":"IF('Étape 2 - Sélection indicateurs'!E80=\"\",\"\",'Étape 2 - Sélection indicateurs'!E80)","v":""}]
[null,{"$f":"IF('Étape 2 - Sélection indicateurs'!C81=\"\",\"\",'Étape 2 - Sélection indicateurs'!C81)","v":""},{"$f":"IF('Étape 2 - Sélection indicateurs'!D81=\"\",\"\",'Étape 2 - Sélection indicateurs'!D81)","v":""},{"$f":"IF('Étape 2 - Sélection indicateurs'!E81=\"\",\"\",'Étape 2 - Sélection indicateurs'!E81)","v":""}]
[null,{"$f":"IF('Étape 2 - Sélection indicateurs'!C82=\"\",\"\",'Étape 2 - Sélection indicateurs'!C82)","v":""},{"$f":"IF('Étape 2 - Sélection indicateurs'!D82=\"\",\"\",'Étape 2 - Sélection indicateurs'!D82)","v":""},{"$f":"IF('Étape 2 - Sélection indicateurs'!E82=\"\",\"\",'Étape 2 - Sélection indicateurs'!E82)","v":""}]
[null,{"$f":"IF('Étape 2 - Sélection indicateurs'!C83=\"\",\"\",'Étape 2 - Sélection indicateurs'!C83)","v":""},{"$f":"IF('Étape 2 - Sélection indicateurs'!D83=\"\",\"\",'Étape 2 - Sélection indicateurs'!D83)","v":""},{"$f":"IF('Étape 2 - Sélection indicateurs'!E83=\"\",\"\",'Étape 2 - Sélection indicateurs'!E83)","v":""}]
[null,{"$f":"IF('Étape 2 - Sélection indicateurs'!C84=\"\",\"\",'Étape 2 - Sélection indicateurs'!C84)","v":""},{"$f":"IF('Étape 2 - Sélection indicateurs'!D84=\"\",\"\",'Étape 2 - Sélection indicateurs'!D84)","v":""},{"$f":"IF('Étape 2 - Sélection indicateurs'!E84=\"\",\"\",'Étape 2 - Sélection indicateurs'!E84)","v":""}]
[null,{"$f":"IF('Étape 2 - Sélection indicateurs'!C85=\"\",\"\",'Étape 2 - Sélection indicateurs'!C85)","v":""},{"$f":"IF('Étape 2 - Sélection indicateurs'!D85=\"\",\"\",'Étape 2 - Sélection indicateurs'!D85)","v":""},{"$f":"IF('Étape 2 - Sélection indicateurs'!E85=\"\",\"\",'Étape 2 - Sélection indicateurs'!E85)","v":""}]
[null,{"$f":"IF('Étape 2 - Sélection indicateurs'!C86=\"\",\"\",'Étape 2 - Sélection indicateurs'!C86)","v":""},{"$f":"IF('Étape 2 - Sélection indicateurs'!D86=\"\",\"\",'Étape 2 - Sélection indicateurs'!D86)","v":""},{"$f":"IF('Étape 2 - Sélection indicateurs'!E86=\"\",\"\",'Étape 2 - Sélection indicateurs'!E86)","v":""}]
[null,{"$f":"IF('Étape 2 - Sélection indicateurs'!C87=\"\",\"\",'Étape 2 - Sélection indicateurs'!C87)","v":""},{"$f":"IF('Étape 2 - Sélection indicateurs'!D87=\"\",\"\",'Étape 2 - Sélection indicateurs'!D87)","v":""},{"$f":"IF('Étape 2 - Sélection indicateurs'!E87=\"\",\"\",'Étape 2 - Sélection indicateurs'!E87)","v":""}]
[null,{"$f":"IF('Étape 2 - Sélection indicateurs'!C88=\"\",\"\",'Étape 2 - Sélection indicateurs'!C88)","v":""},{"$f":"IF('Étape 2 - Sélection indicateurs'!D88=\"\",\"\",'Étape 2 - Sélection indicateurs'!D88)","v":""},{"$f":"IF('Étape 2 - Sélection indicateurs'!E88=\"\",\"\",'Étape 2 - Sélection indicateurs'!E88)","v":""}]
[null,{"$f":"IF('Étape 2 - Sélection indicateurs'!C89=\"\",\"\",'Étape 2 - Sélection indicateurs'!C89)","v":""},{"$f":"IF('Étape 2 - Sélection indicateurs'!D89=\"\",\"\",'Étape 2 - Sélection indicateurs'!D89)","v":""},{"$f":"IF('Étape 2 - Sélection indicateurs'!E89=\"\",\"\",'Étape 2 - Sélection indicateurs'!E89)","v":""}]
[null,{"$f":"IF('Étape 2 - Sélection indicateurs'!C90=\"\",\"\",'Étape 2 - Sélection indicateurs'!C90)","v":""},{"$f":"IF('Étape 2 - Sélection indicateurs'!D90=\"\",\"\",'Étape 2 - Sélection indicateurs'!D90)","v":""},{"$f":"IF('Étape 2 - Sélection indicateurs'!E90=\"\",\"\",'Étape 2 - Sélection indicateurs'!E90)","v":""}]
[null,{"$f":"IF('Étape 2 - Sélection indicateurs'!C91=\"\",\"\",'Étape 2 - Sélection indicateurs'!C91)","v":""},{"$f":"IF('Étape 2 - Sélection indicateurs'!D91=\"\",\"\",'Étape 2 - Sélection indicateurs'!D91)","v":""},{"$f":"IF('Étape 2 - Sélection indicateurs'!E91=\"\",\"\",'Étape 2 - Sélection indicateurs'!E91)","v":""}]
[null,{"$f":"IF('Étape 2 - Sélection indicateurs'!C92=\"\",\"\",'Étape 2 - Sélection indicateurs'!C92)","v":""},{"$f":"IF('Étape 2 - Sélection indicateurs'!D92=\"\",\"\",'Étape 2 - Sélection indicateurs'!D92)","v":""},{"$f":"IF('Étape 2 - Sélection indicateurs'!E92=\"\",\"\",'Étape 2 - Sélection indicateurs'!E92)","v":""}]
[null,{"$f":"IF('Étape 2 - Sélection indicateurs'!C93=\"\",\"\",'Étape 2 - Sélection indicateurs'!C93)","v":""},{"$f":"IF('Étape 2 - Sélection indicateurs'!D93=\"\",\"\",'Étape 2 - Sélection indicateurs'!D93)","v":""},{"$f":"IF('Étape 2 - Sélection indicateurs'!E93=\"\",\"\",'Étape 2 - Sélection indicateurs'!E93)","v":""}]
[null,{"$f":"IF('Étape 2 - Sélection indicateurs'!C94=\"\",\"\",'Étape 2 - Sélection indicateurs'!C94)","v":""},{"$f":"IF('Étape 2 - Sélection indicateurs'!D94=\"\",\"\",'Étape 2 - Sélection indicateurs'!D94)","v":""},{"$f":"IF('Étape 2 - Sélection indicateurs'!E94=\"\",\"\",'Étape 2 - Sélection indicateurs'!E94)","v":""}]
[null,{"$f":"IF('Étape 2 - Sélection indicateurs'!C95=\"\",\"\",'Étape 2 - Sélection indicateurs'!C95)","v":""},{"$f":"IF('Étape 2 - Sélection indicateurs'!D95=\"\",\"\",'Étape 2 - Sélection indicateurs'!D95)","v":""},{"$f":"IF('Étape 2 - Sélection indicateurs'!E95=\"\",\"\",'Étape 2 - Sélection indicateurs'!E95)","v":""}]
[null,{"$f":"IF('Étape 2 - Sélection indicateurs'!C96=\"\",\"\",'Étape 2 - Sélection indicateurs'!C96)","v":""},{"$f":"IF('Étape 2 - Sélection indicateurs'!D96=\"\",\"\",'Étape 2 - Sélection indicateurs'!D96)","v":""},{"$f":"IF('Étape 2 - Sélection indicateurs'!E96=\"\",\"\",'Étape 2 - Sélection indicateurs'!E96)","v":""}]
[null,{"$f":"IF('Étape 2 - Sélection indicateurs'!C97=\"\",\"\",'Étape 2 - Sélection indicateurs'!C97)","v":""},{"$f":"IF('Étape 2 - Sélection indicateurs'!D97=\"\",\"\",'Étape 2 - Sélection indicateurs'!D97)","v":""},{"$f":"IF('Étape 2 - Sélection indicateurs'!E97=\"\",\"\",'Étape 2 - Sélection indicateurs'!E97)","v":""}]
[null,{"$f":"IF('Étape 2 - Sélection indicateurs'!C98=\"\",\"\",'Étape 2 - Sélection indicateurs'!C98)","v":""},{"$f":"IF('Étape 2 - Sélection indicateurs'!D98=\"\",\"\",'Étape 2 - Sélection indicateurs'!D98)","v":""},{"$f":"IF('Étape 2 - Sélection indicateurs'!E98=\"\",\"\",'Étape 2 - Sélection indicateurs'!E98)","v":""}]
[null,{"$f":"IF('Étape 2 - Sélection indicateurs'!C99=\"\",\"\",'Étape 2 - Sélection indicateurs'!C99)","v":""},{"$f":"IF('Étape 2 - Sélection indicateurs'!D99=\"\",\"\",'Étape 2 - Sélection indicateurs'!D99)","v":""},{"$f":"IF('Étape 2 - Sélection indicateurs'!E99=\"\",\"\",'Étape 2 - Sélection indicateurs'!E99)","v":""}]
[null,{"$f":"IF('Étape 2 - Sélection indicateurs'!C100=\"\",\"\",'Étape 2 - Sélection indicateurs'!C100)","v":""},{"$f":"IF('Étape 2 - Sélection indicateurs'!D100=\"\",\"\",'Étape 2 - Sélection indicateurs'!D100)","v":""},{"$f":"IF('Étape 2 - Sélection indicateurs'!E100=\"\",\"\",'Étape 2 - Sélection indicateurs'!E100)","v":""}]
[null,{"$f":"IF('Étape 2 - Sélection indicateurs'!C101=\"\",\"\",'Étape 2 - Sélection indicateurs'!C101)","v":""},{"$f":"IF('Étape 2 - Sélection indicateurs'!D101=\"\",\"\",'Étape 2 - Sélection indicateurs'!D101)","v":""},{"$f":"IF('Étape 2 - Sélection indicateurs'!E101=\"\",\"\",'Étape 2 - Sélection indicateurs'!E101)","v":""}]
[null,{"$f":"IF('Étape 2 - Sélection indicateurs'!C102=\"\",\"\",'Étape 2 - Sélection indicateurs'!C102)","v":""},{"$f":"IF('Étape 2 - Sélection indicateurs'!D102=\"\",\"\",'Étape 2 - Sélection indicateurs'!D102)","v":""},{"$f":"IF('Étape 2 - Sélection indicateurs'!E102=\"\",\"\",'Étape 2 - Sélection indicateurs'!E102)","v":""}]
[null,{"$f":"IF('Étape 2 - Sélection indicateurs'!C103=\"\",\"\",'Étape 2 - Sélection indicateurs'!C103)","v":""},{"$f":"IF('Étape 2 - Sélection indicateurs'!D103=\"\",\"\",'Étape 2 - Sélection indicateurs'!D103)","v":""},{"$f":"IF('Étape 2 - Sélection indicateurs'!E103=\"\",\"\",'Étape 2 - Sélection indicateurs'!E103)","v":""}]
[null,{"$f":"IF('Étape 2 - Sélection indicateurs'!C104=\"\",\"\",'Étape 2 - Sélection indicateurs'!C104)","v":""},{"$f":"IF('Étape 2 - Sélection indicateurs'!D104=\"\",\"\",'Étape 2 - Sélection indicateurs'!D104)","v":""},{"$f":"IF('Étape 2 - Sélection indicateurs'!E104=\"\",\"\",'Étape 2 - Sélection indicateurs'!E104)","v":""}]
[null,{"$f":"IF('Étape 2 - Sélection indicateurs'!C105=\"\",\"\",'Étape 2 - Sélection indicateurs'!C105)","v":""},{"$f":"IF('Étape 2 - Sélection indicateurs'!D105=\"\",\"\",'Étape 2 - Sélection indicateurs'!D105)","v":""},{"$f":"IF('Étape 2 - Sélection indicateurs'!E105=\"\",\"\",'Étape 2 - Sélection indicateurs'!E105)","v":""}]
[null,{"$f":"IF('Étape 2 - Sélection indicateurs'!C106=\"\",\"\",'Étape 2 - Sélection indicateurs'!C106)","v":""},{"$f":"IF('Étape 2 - Sélection indicateurs'!D106=\"\",\"\",'Étape 2 - Sélection indicateurs'!D106)","v":""},{"$f":"IF('Étape 2 - Sélection indicateurs'!E106=\"\",\"\",'Étape 2 - Sélection indicateurs'!E106)","v":""}]
[null,{"$f":"IF('Étape 2 - Sélection indicateurs'!C107=\"\",\"\",'Étape 2 - Sélection indicateurs'!C107)","v":""},{"$f":"IF('Étape 2 - Sélection indicateurs'!D107=\"\",\"\",'Étape 2 - Sélection indicateurs'!D107)","v":""},{"$f":"IF('Étape 2 - Sélection indicateurs'!E107=\"\",\"\",'Étape 2 - Sélection indicateurs'!E107)","v":""}]
[null,{"$f":"IF('Étape 2 - Sélection indicateurs'!C108=\"\",\"\",'Étape 2 - Sélection indicateurs'!C108)","v":""},{"$f":"IF('Étape 2 - Sélection indicateurs'!D108=\"\",\"\",'Étape 2 - Sélection indicateurs'!D108)","v":""},{"$f":"IF('Étape 2 - Sélection indicateurs'!E108=\"\",\"\",'Étape 2 - Sélection indicateurs'!E108)","v":""}]
[null,{"$f":"IF('Étape 2 - Sélection indicateurs'!C109=\"\",\"\",'Étape 2 - Sélection indicateurs'!C109)","v":""},{"$f":"IF('Étape 2 - Sélection indicateurs'!D109=\"\",\"\",'Étape 2 - Sélection indicateurs'!D109)","v":""},{"$f":"IF('Étape 2 - Sélection indicateurs'!E109=\"\",\"\",'Étape 2 - Sélection indicateurs'!E109)","v":""}]
[null,{"$f":"IF('Étape 2 - Sélection indicateurs'!C110=\"\",\"\",'Étape 2 - Sélection indicateurs'!C110)","v":""},{"$f":"IF('Étape 2 - Sélection indicateurs'!D110=\"\",\"\",'Étape 2 - Sélection indicateurs'!D110)","v":""},{"$f":"IF('Étape 2 - Sélection indicateurs'!E110=\"\",\"\",'Étape 2 - Sélection indicateurs'!E110)","v":""}]
[null,{"$f":"IF('Étape 2 - Sélection indicateurs'!C111=\"\",\"\",'Étape 2 - Sélection indicateurs'!C111)","v":""},{"$f":"IF('Étape 2 - Sélection indicateurs'!D111=\"\",\"\",'Étape 2 - Sélection indicateurs'!D111)","v":""},{"$f":"IF('Étape 2 - Sélection indicateurs'!E111=\"\",\"\",'Étape 2 - Sélection indicateurs'!E111)","v":""}]
[null,{"$f":"IF('Étape 2 - Sélection indicateurs'!C112=\"\",\"\",'Étape 2 - Sélection indicateurs'!C112)","v":""},{"$f":"IF('Étape 2 - Sélection indicateurs'!D112=\"\",\"\",'Étape 2 - Sélection indicateurs'!D112)","v":""},{"$f":"IF('Étape 2 - Sélection indicateurs'!E112=\"\",\"\",'Étape 2 - Sélection indicateurs'!E112)","v":""}]
[null,{"$f":"IF('Étape 2 - Sélection indicateurs'!C113=\"\",\"\",'Étape 2 - Sélection indicateurs'!C113)","v":""},{"$f":"IF('Étape 2 - Sélection indicateurs'!D113=\"\",\"\",'Étape 2 - Sélection indicateurs'!D113)","v":""},{"$f":"IF('Étape 2 - Sélection indicateurs'!E113=\"\",\"\",'Étape 2 - Sélection indicateurs'!E113)","v":""}]
[null,{"$f":"IF('Étape 2 - Sélection indicateurs'!C114=\"\",\"\",'Étape 2 - Sélection indicateurs'!C114)","v":""},{"$f":"IF('Étape 2 - Sélection indicateurs'!D114=\"\",\"\",'Étape 2 - Sélection indicateurs'!D114)","v":""},{"$f":"IF('Étape 2 - Sélection indicateurs'!E114=\"\",\"\",'Étape 2 - Sélection indicateurs'!E114)","v":""}]
[null,{"$f":"IF('Étape 2 - Sélection indicateurs'!C115=\"\",\"\",'Étape 2 - Sélection indicateurs'!C115)","v":""},{"$f":"IF('Étape 2 - Sélection indicateurs'!D115=\"\",\"\",'Étape 2 - Sélection indicateurs'!D115)","v":""},{"$f":"IF('Étape 2 - Sélection indicateurs'!E115=\"\",\"\",'Étape 2 - Sélection indicateurs'!E115)","v":""}]
[null,{"$f":"IF('Étape 2 - Sélection indicateurs'!C116=\"\",\"\",'Étape 2 - Sélection indicateurs'!C116)","v":""},{"$f":"IF('Étape 2 - Sélection indicateurs'!D116=\"\",\"\",'Étape 2 - Sélection indicateurs'!D116)","v":""},{"$f":"IF('Étape 2 - Sélection indicateurs'!E116=\"\",\"\",'Étape 2 - Sélection indicateurs'!E116)","v":""}]
[null,{"$f":"IF('Étape 2 - Sélection indicateurs'!C117=\"\",\"\",'Étape 2 - Sélection indicateurs'!C117)","v":""},{"$f":"IF('Étape 2 - Sélection indicateurs'!D117=\"\",\"\",'Étape 2 - Sélection indicateurs'!D117)","v":""},{"$f":"IF('Étape 2 - Sélection indicateurs'!E117=\"\",\"\",'Étape 2 - Sélection indicateurs'!E117)","v":""}]
[null,{"$f":"IF('Étape 2 - Sélection indicateurs'!C118=\"\",\"\",'Étape 2 - Sélection indicateurs'!C118)","v":""},{"$f":"IF('Étape 2 - Sélection indicateurs'!D118=\"\",\"\",'Étape 2 - Sélection indicateurs'!D118)","v":""},{"$f":"IF('Étape 2 - Sélection indicateurs'!E118=\"\",\"\",'Étape 2 - Sélection indicateurs'!E118)","v":""}]
[null,{"$f":"IF('Étape 2 - Sélection indicateurs'!C119=\"\",\"\",'Étape 2 - Sélection indicateurs'!C119)","v":""},{"$f":"IF('Étape 2 - Sélection indicateurs'!D119=\"\",\"\",'Étape 2 - Sélection indicateurs'!D119)","v":""},{"$f":"IF('Étape 2 - Sélection indicateurs'!E119=\"\",\"\",'Étape 2 - Sélection indicateurs'!E119)","v":""}]
[null,{"$f":"IF('Étape 2 - Sélection indicateurs'!C120=\"\",\"\",'Étape 2 - Sélection indicateurs'!C120)","v":""},{"$f":"IF('Étape 2 - Sélection indicateurs'!D120=\"\",\"\",'Étape 2 - Sélection indicateurs'!D120)","v":""},{"$f":"IF('Étape 2 - Sélection indicateurs'!E120=\"\",\"\",'Étape 2 - Sélection indicateurs'!E120)","v":""}]
[null,{"$f":"IF('Étape 2 - Sélection indicateurs'!C121=\"\",\"\",'Étape 2 - Sélection indicateurs'!C121)","v":""},{"$f":"IF('Étape 2 - Sélection indicateurs'!D121=\"\",\"\",'Étape 2 - Sélection indicateurs'!D121)","v":""},{"$f":"IF('Étape 2 - Sélection indicateurs'!E121=\"\",\"\",'Étape 2 - Sélection indicateurs'!E121)","v":""}]
[null,{"$f":"IF('Étape 2 - Sélection indicateurs'!C122=\"\",\"\",'Étape 2 - Sélection indicateurs'!C122)","v":""},{"$f":"IF('Étape 2 - Sélection indicateurs'!D122=\"\",\"\",'Étape 2 - Sélection indicateurs'!D122)","v":""},{"$f":"IF('Étape 2 - Sélection indicateurs'!E122=\"\",\"\",'Étape 2 - Sélection indicateurs'!E122)","v":""}]
[null,{"$f":"IF('Étape 2 - Sélection indicateurs'!C123=\"\",\"\",'Étape 2 - Sélection indicateurs'!C123)","v":""},{"$f":"IF('Étape 2 - Sélection indicateurs'!D123=\"\",\"\",'Étape 2 - Sélection indicateurs'!D123)","v":""},{"$f":"IF('Étape 2 - Sélection indicateurs'!E123=\"\",\"\",'Étape 2 - Sélection indicateurs'!E123)","v":""}]
[null,{"$f":"IF('Étape 2 - Sélection indicateurs'!C124=\"\",\"\",'Étape 2 - Sélection indicateurs'!C124)","v":""},{"$f":"IF('Étape 2 - Sélection indicateurs'!D124=\"\",\"\",'Étape 2 - Sélection indicateurs'!D124)","v":""},{"$f":"IF('Étape 2 - Sélection indicateurs'!E124=\"\",\"\",'Étape 2 - Sélection indicateurs'!E124)","v":""}]

{"sheet":"Output - Draft Scorecard","index":5,"n_rows":30,"n_cols":23,"rows_kept":30,"cut":false,"hidden":false,"merged":[]}
[]
[null,{"$f":"CONCATENATE('Step 0 - Configuration'!C3,\": \",'Step 0 - Configuration'!C6)","v":"NOM DU PAYS: NOM DE LA CARTE DE SCORE"},null,null,null,null,null,null,null,null,"<-- Only click when indicators have been completed"]
[null,"Résultat: Draft carte de score"]
[]
[null,{"$f":"CONCATENATE('Step 0 - Configuration'!E4,\" Indicators\")","v":"National Indicators"}]
[]
[]
[null,"National / Subnational","National"]
[]
[null,"Category","Indicator Name"]
[null,"Maternal Health"]
[null,"Teenage Family Planning Strategy"]
[null,{"$f":"IF(B12=\"\",\"\",\"X%\")","v":"X%"},"","","","","","","","","","","","","","","","","","","","",""]
[]
[null,{"$f":"CONCATENATE('Step 0 - Configuration'!E5,\" Indicators\")","v":"Sous-national Indicators"}]
[]
[]
[null,null,"National / Subnational","Subnational"]
[]
[null,null,"Category","Indicator Name"]
[null,null,"Maternal Health",null,"Commodities"]
[null,"Region","ANC1","ANC4","Fully Immunized"]
[]
[null,"Country",{"$f":"IF(C$22=\"\",\"\",CONCATENATE(ROUND(RAND(),2)*100,\"%\"))","v":"1%"},"75%","14%","","","","","","","",{"$f":"IF(M$22=\"\",\"\",CONCATENATE(ROUND(RAND(),2)*100,\"%\"))","v":""},"","","","","","","","","",""]
[null,"Subnational ","42%","3%","47%","","","","","","","","","","","","","","","","","",""]
[null,"Subnational Region 3","100%","81%","39%","","","","","","","","","","","","","","","","","",""]
[null,"Subnational Region 4","22%","79%","64%","","","","","","","","","","","","","","","","","",""]
[null,"Subnational Region 5","93%","93%","16%","","","","","","","","","","","","","","","","","",""]
[null,"Subnational Region 6","99%","39%","30%","","","","","","","","","","","","","","","","","",""]
[null,"Subnational Region 7","59%","66%","51%","","","","","","","","","","","","","","","","","",""]